Workbook

Sheet OVERALL STATS
A1: OVERALL TITLE COMPANY MARKET STATISTICS Lyon County, NV)
A2: Reporting Period: APRIL, 2020
A5: OVERALL SALES MARKET (Resales & Subdivision Sales)
A6: TITLE COMPANY | B6: CLOSINGS | C6: DOLLAR VOLUME | D6: CLOSINGS | E6: DOLLAR VOLUME | F6: CLOSINGS | G6: DOLLAR VOLUME
A7: Western Title | B7: 67 | C7: 30600554.88 | D7: =B7/$B$15 -> 0.4820143885 | E7: =C7/$C$15 -> 0.6132316385 | F7: 1 | G7: 1
A8: Ticor Title | B8: 39 | C8: 10642527 | D8: =B8/$B$15 -> 0.2805755396 | E8: =C8/$C$15 -> 0.2132750303 | F8: 2 | G8: 2
A9: First Centennial Title | B9: 20 | C9: 4662400 | D9: =B9/$B$15 -> 0.1438848921 | E9: =C9/$C$15 -> 0.09343396558 | F9: 3 | G9: 3
A10: First American Title | B10: 7 | C10: 2631601 | D10: =B10/$B$15 -> 0.05035971223 | E10: =C10/$C$15 -> 0.05273698466 | F10: 4 | G10: 4
A11: Signature Title | B11: 3 | C11: 875500 | D11: =B11/$B$15 -> 0.02158273381 | E11: =C11/$C$15 -> 0.0175449204 | F11: 5 | G11: 5
A12: Toiyabe Title | B12: 1 | C12: 334900 | D12: =B12/$B$15 -> 0.007194244604 | E12: =C12/$C$15 -> 0.0067113579 | F12: 6 | G12: 6
A13: North American Title | B13: 1 | C13: 133000 | D13: =B13/$B$15 -> 0.007194244604 | E13: =C13/$C$15 -> 0.002665304869 | F13: 6 | G13: 7
A14: Acme Title and Escrow | B14: 1 | C14: 20000 | D14: =B14/$B$15 -> 0.007194244604 | E14: =C14/$C$15 -> 0.0004007977247 | F14: 6 | G14: 8
A15: GRAND TOTAL | B15: =SUM(B7:B14) -> 139 | C15: =SUM(C7:C14) -> 49900482.88 | D15: =SUM(D7:D14) -> 1 | E15: =SUM(E7:E14) -> 1
A17: OVERALL LOAN ONLY MARKET (Refi's, Construction, Commercial, Credit Lines, Homequity, etc.)
D18: % OF | E18: % OF | F18: RANK BY | G18: RANK BY
A19: TITLECOMPANY | B19: CLOSINGS | C19: DOLLAR VOLUME | D19: CLOSINGS | E19: DOLLAR VOLUME | F19: CLOSINGS | G19: DOLLAR VOLUME
A20: Ticor Title | B20: 50 | C20: 30483195 | D20: =B20/$B$27 -> 0.4310344828 | E20: =C20/$C$27 -> 0.6147345099 | F20: 1 | G20: 1
A21: Western Title | B21: 29 | C21: 9353589.25 | D21: 0.25 | E21: 0.1886276719 | F21: 2 | G21: 2
A22: First Centennial Title | B22: 18 | C22: 4020899 | D22: 0.1551724138 | E22: 0.08108682099 | F22: 3 | G22: 3
A23: First American Title | B23: 11 | C23: 3865165 | D23: 0.09482758621 | E23: 0.07794623602 | F23: 4 | G23: 4
A24: North American Title | B24: 5 | C24: 1369647 | D24: 0.04310344828 | E24: 0.02762076867 | F24: 5 | G24: 5
A25: Stewart Title | B25: 2 | C25: 220000 | D25: 0.01724137931 | E25: 0.004436595055 | F25: 6 | G25: 7
A26: Toiyabe Title | B26: 1 | C26: 275082 | D26: =B26/$B$27 -> 0.008620689655 | E26: =C26/$C$27 -> 0.005547397458 | F26: 7 | G26: 6
A27: GRAND TOTAL | B27: =SUM(B20:B26) -> 116 | C27: =SUM(C20:C26) -> 49587577.25 | D27: =SUM(D20:D26) -> 1 | E27: =SUM(E20:E26) -> 1
A29: OVERALL SALES AND LOAN ONLY MARKETS COMBINED
D30: % OF | E30: % OF | F30: RANK BY | G30: RANK BY
A31: TITLECOMPANY | B31: CLOSINGS | C31: DOLLAR VOLUME | D31: CLOSINGS | E31: DOLLAR VOLUME | F31: CLOSINGS | G31: DOLLAR VOLUME
A32: Western Title | B32: 96 | C32: 39954144.13 | D32: =B32/$B$41 -> 0.3764705882 | E32: =C32/$C$41 -> 0.4015973784 | F32: 1 | G32: 2
A33: Ticor Title | B33: 89 | C33: 41125722 | D33: 0.3490196078 | E33: 0.4133734435 | F33: 2 | G33: 1
A34: First Centennial Title | B34: 38 | C34: 8683299 | D34: 0.1490196078 | E34: 0.08727981015 | F34: 3 | G34: 3
A35: First American Title | B35: 18 | C35: 6496766 | D35: =B35/$B$41 -> 0.07058823529 | E35: =C35/$C$41 -> 0.0653019668 | F35: 4 | G35: 4
A36: North American Title | B36: 6 | C36: 1502647 | D36: 0.02352941176 | E36: 0.01510379233 | F36: 5 | G36: 5
A37: Signature Title | B37: 3 | C37: 875500 | D37: 0.01176470588 | E37: 0.008800050969 | F37: 6 | G37: 6
A38: Toiyabe Title | B38: 2 | C38: 609982 | D38: 0.007843137255 | E38: 0.006131208099 | F38: 7 | G38: 7
A39: Stewart Title | B39: 2 | C39: 220000 | D39: 0.007843137255 | E39: 0.002211320632 | F39: 7 | G39: 8
A40: Acme Title and Escrow | B40: 1 | C40: 20000 | D40: =B40/$B$41 -> 0.003921568627 | E40: =C40/$C$41 -> 0.0002010291484 | F40: 8 | G40: 9
A41: GRAND TOTAL | B41: =SUM(B32:B40) -> 255 | C41: =SUM(C32:C40) -> 99488060.13 | D41: =SUM(D32:D40) -> 1 | E41: =SUM(E32:E40) -> 1
A43: Information provided by Datasource | D43: SEE CHARTS BELOW:
A44: www.datasourcenev.com

Sheet SALES STATS
A1: SALES MARKET Lyon County, NV)
A2: ='OVERALL STATS'!A2 -> Reporting Period: APRIL, 2020
A4: RESALE MARKET (Includes ALL types of real property)
D5: % OF | E5: % OF | F5: RANK BY | G5: RANK BY
A6: TITLE COMPANY | B6: CLOSINGS | C6: DOLLAR VOLUME | D6: CLOSINGS | E6: DOLLAR VOLUME | F6: CLOSINGS | G6: DOLLAR VOLUME
A7: Western Title | B7: 62 | C7: 29101709 | D7: =B7/$B$15 -> 0.484375 | E7: =C7/$C$15 -> 0.6257485211 | F7: 1 | G7: 1
A8: Ticor Title | B8: 37 | C8: 10123527 | D8: =B8/$B$15 -> 0.2890625 | E8: =C8/$C$15 -> 0.2176773209 | F8: 2 | G8: 2
A9: First Centennial Title | B9: 20 | C9: 4662400 | D9: =B9/$B$15 -> 0.15625 | E9: =C9/$C$15 -> 0.1002514974 | F9: 3 | G9: 3
A10: First American Title | B10: 3 | C10: 1256000 | D10: =B10/$B$15 -> 0.0234375 | E10: =C10/$C$15 -> 0.02700666626 | F10: 4 | G10: 4
A11: Signature Title | B11: 3 | C11: 875500 | D11: =B11/$B$15 -> 0.0234375 | E11: =C11/$C$15 -> 0.01882510853 | F11: 4 | G11: 5
A12: Toiyabe Title | B12: 1 | C12: 334900 | D12: =B12/$B$15 -> 0.0078125 | E12: =C12/$C$15 -> 0.007201060932 | F12: 5 | G12: 6
A13: North American Title | B13: 1 | C13: 133000 | D13: =B13/$B$15 -> 0.0078125 | E13: =C13/$C$15 -> 0.002859782335 | F13: 6 | G13: 7
A14: Acme Title and Escrow | B14: 1 | C14: 20000 | D14: =B14/$B$15 -> 0.0078125 | E14: =C14/$C$15 -> 0.0004300424564 | F14: 6 | G14: 8
A15: GRAND TOTAL | B15: =SUM(B7:B14) -> 128 | C15: =SUM(C7:C14) -> 46507036 | D15: =SUM(D7:D14) -> 1 | E15: =SUM(E7:E14) -> 1 | F15: 6
A17: SUBDIVISION SALES (Builder/Developer Sales)
D18: % OF | E18: % OF | F18: RANK BY | G18: RANK BY
A19: TITLE COMPANY | B19: CLOSINGS | C19: DOLLAR VOLUME | D19: CLOSINGS | E19: DOLLAR VOLUME | F19: CLOSINGS | G19: DOLLAR VOLUME
A20: Western Title | B20: 5 | C20: 1498845.88 | D20: =B20/$B$23 -> 0.4545454545 | E20: =C20/$C$23 -> 0.4416883284 | F20: 1 | G20: 1
A21: First American Title | B21: 4 | C21: 1375601 | D21: =B21/$B$23 -> 0.3636363636 | E21: =C21/$C$23 -> 0.4053698345 | F21: 2 | G21: 2
A22: Ticor Title | B22: 2 | C22: 519000 | D22: =B22/$B$23 -> 0.1818181818 | E22: =C22/$C$23 -> 0.1529418371 | F22: 3 | G22: 3
A23: GRAND TOTAL | B23: =SUM(B20:B22) -> 11 | C23: =SUM(C20:C22) -> 3393446.88 | D23: =SUM(D20:D22) -> 1 | E23: =SUM(E20:E22) -> 1
A25: RESIDENTIAL RESALE MARKET (Residential Properties Only)
D26: % OF | E26: % OF | F26: RANK BY | G26: RANK BY
A27: TITLE COMPANY | B27: CLOSINGS | C27: DOLLAR VOLUME | D27: CLOSINGS | E27: DOLLAR VOLUME | F27: CLOSINGS | G27: DOLLAR VOLUME
A28: Western Title | B28: 50 | C28: 12861709 | D28: =B28/$B$35 -> 0.4807692308 | E28: =C28/$C$35 -> 0.4422257282 | F28: 1 | G28: 1
A29: Ticor Title | B29: 32 | C29: 9766027 | D29: 0.3076923077 | E29: 0.3357865119 | F29: 2 | G29: 2
A30: First Centennial Title | B30: 15 | C30: 4426900 | D30: 0.1442307692 | E30: 0.1522106492 | F30: 3 | G30: 3
A31: Signature Title | B31: 3 | C31: 875500 | D31: 0.02884615385 | E31: 0.03010242457 | F31: 4 | G31: 4
A32: First American Title | B32: 2 | C32: 686000 | D32: 0.01923076923 | E32: 0.02358682268 | F32: 5 | G32: 5
A33: Toiyabe Title | B33: 1 | C33: 334900 | D33: 0.009615384615 | E33: 0.01151490804 | F33: 6 | G33: 6
A34: North American Title | B34: 1 | C34: 133000 | D34: =B34/$B$35 -> 0.009615384615 | E34: =C34/$C$35 -> 0.004572955418 | F34: 6 | G34: 7
A35: GRAND TOTAL | B35: =SUM(B28:B34) -> 104 | C35: =SUM(C28:C34) -> 29084036 | D35: =SUM(D28:D34) -> 1 | E35: =SUM(E28:E34) -> 1
A37: COMMERCIAL/INDUSTRIAL, APARTMENTS, MOBILE HOME PARKS SALES MARKET
D38: % OF | E38: % OF | F38: RANK BY | G38: RANK BY
A39: TITLE COMPANY | B39: CLOSINGS | C39: DOLLAR VOLUME | D39: CLOSINGS | E39: DOLLAR VOLUME | F39: CLOSINGS | G39: DOLLAR VOLUME
A40: Western Title | B40: 2 | C40: 15156000 | D40: =B40/$B$43 -> 0.4 | E40: =C40/$C$43 -> 0.9888109607 | F40: 1 | G40: 1
A41: Ticor Title | B41: 2 | C41: 85500 | D41: =B41/$B$43 -> 0.4 | E41: =C41/$C$43 -> 0.005578209101 | F41: 1 | G41: 3
A42: First Centennial Title | B42: 1 | C42: 86000 | D42: =B42/$B$43 -> 0.2 | E42: =C42/$C$43 -> 0.005610830207 | F42: 2 | G42: 2
A43: GRAND TOTAL | B43: =SUM(B40:B42) -> 5 | C43: =SUM(C40:C42) -> 15327500 | D43: =SUM(D40:D42) -> 1 | E43: =SUM(E40:E42) -> 1
A45: VACANT LAND SALES
D46: % OF | E46: % OF | F46: RANK BY | G46: RANK BY
A47: TITLE COMPANY | B47: CLOSINGS | C47: DOLLAR VOLUME | D47: CLOSINGS | E47: DOLLAR VOLUME | F47: CLOSINGS | G47: DOLLAR VOLUME
A48: Western Title | B48: 10 | C48: 1084000 | D48: =B48/$B$53 -> 0.5263157895 | E48: =C48/$C$53 -> 0.517298974 | F48: 1 | G48: 1
A49: First Centennial Title | B49: 4 | C49: 149500 | D49: =B49/$B$53 -> 0.2105263158 | E49: =C49/$C$53 -> 0.07134335481 | F49: 2 | G49: 4
A50: Ticor Title | B50: 3 | C50: 272000 | D50: =B50/$B$53 -> 0.1578947368 | E50: =C50/$C$53 -> 0.1298019566 | F50: 3 | G50: 3
A51: First American Title | B51: 1 | C51: 570000 | D51: =B51/$B$53 -> 0.05263157895 | E51: =C51/$C$53 -> 0.2720114531 | F51: 4 | G51: 2
A52: Acme Title and Escrow | B52: 1 | C52: 20000 | D52: =B52/$B$53 -> 0.05263157895 | E52: =C52/$C$53 -> 0.009544261513 | F52: 4 | G52: 5
A53: GRAND TOTAL | B53: =SUM(B48:B52) -> 19 | C53: =SUM(C48:C52) -> 2095500 | D53: =SUM(D48:D52) -> 1 | E53: =SUM(E48:E52) -> 1
A56: Information provided by Datasource
A57: www.datasourcenev.com

Sheet LOAN ONLY STATS
A1: LOAN ONLY MARKETS Lyon County, NV)
A2: ='OVERALL STATS'!A2 -> Reporting Period: APRIL, 2020
A4: CONVENTIONAL LOANS MARKET (Refi's)
D5: % OF | E5: % OF | F5: RANK BY | G5: RANK BY
A6: TITLECOMPANY | B6: CLOSINGS | C6: DOLLAR VOLUME | D6: CLOSINGS | E6: DOLLAR VOLUME | F6: CLOSINGS | G6: DOLLAR VOLUME
A7: Ticor Title | B7: 48 | C7: 10998195 | D7: =B7/$B$14 -> 0.4363636364 | E7: =C7/$C$14 -> 0.4196449816 | F7: 1 | G7: 1
A8: Western Title | B8: 27 | C8: 6934344 | D8: =B8/$B$14 -> 0.2454545455 | E8: =C8/$C$14 -> 0.2645854761 | F8: 2 | G8: 2
A9: First Centennial Title | B9: 17 | C9: 3995899 | D9: =B9/$B$14 -> 0.1545454545 | E9: =C9/$C$14 -> 0.1524667423 | F9: 3 | G9: 3
A10: First American Title | B10: 10 | C10: 2415165 | D10: 0.09090909091 | E10: 0.09215256431 | F10: 4 | G10: 4
A11: North American Title | B11: 5 | C11: 1369647 | D11: 0.04545454545 | E11: 0.05225998358 | F11: 5 | G11: 5
A12: Stewart Title | B12: 2 | C12: 220000 | D12: 0.01818181818 | E12: 0.008394277057 | F12: 6 | G12: 7
A13: Toiyabe Title | B13: 1 | C13: 275082 | D13: 0.009090909091 | E13: 0.0104959751 | F13: 7 | G13: 6
A14: GRAND TOTAL | B14: =SUM(B7:B13) -> 110 | C14: =SUM(C7:C13) -> 26208332 | D14: =SUM(D7:D13) -> 1 | E14: =SUM(E7:E13) -> 1
A16: COMMERCIAL LOANS MARKET
D17: % OF | E17: % OF | F17: RANK BY | G17: RANK BY
A18: TITLECOMPANY | B18: CLOSINGS | C18: DOLLAR VOLUME | D18: CLOSINGS | E18: DOLLAR VOLUME | F18: CLOSINGS | G18: DOLLAR VOLUME
A19: Ticor Title | B19: 1 | C19: 19200000 | D19: =B19/$B$20 -> 1 | E19: =C19/$C$20 -> 1 | F19: 1 | G19: 1
A20: GRAND TOTAL | B20: =SUM(B19:B19) -> 1 | C20: =SUM(C19:C19) -> 19200000 | D20: =SUM(D19:D19) -> 1 | E20: =SUM(E19:E19) -> 1
A22: HOME EQUITY & CREDIT LINE LOANS MARKET
D23: % OF | E23: % OF | F23: RANK BY | G23: RANK BY
A24: TITLECOMPANY | B24: CLOSINGS | C24: DOLLAR VOLUME | D24: CLOSINGS | E24: DOLLAR VOLUME | F24: CLOSINGS | G24: DOLLAR VOLUME
A25: First Centennial Title | B25: 1 | C25: 25000 | D25: =B25/$B$26 -> 1 | E25: =C25/$C$26 -> 1 | F25: 1 | G25: 1
A26: GRAND TOTAL | B26: =SUM(B25:B25) -> 1 | C26: =SUM(C25:C25) -> 25000 | D26: =SUM(D25:D25) -> 1 | E26: =SUM(E25:E25) -> 1
A28: CONSTRUCTION LOANS MARKET
D29: % OF | E29: % OF | F29: RANK BY | G29: RANK BY
A30: TITLECOMPANY | B30: CLOSINGS | C30: DOLLAR VOLUME | D30: CLOSINGS | E30: DOLLAR VOLUME | F30: CLOSINGS | G30: DOLLAR VOLUME
A31: Western Title | B31: 1 | C31: 2290280.25 | D31: =B31/$B$33 -> 0.5 | E31: =C31/$C$33 -> 0.6123285147 | F31: 1 | G31: 1
A32: First American Title | B32: 1 | C32: 1450000 | D32: =B32/$B$33 -> 0.5 | E32: =C32/$C$33 -> 0.3876714853 | F32: 1 | G32: 2
A33: GRAND TOTAL | B33: =SUM(B31:B32) -> 2 | C33: =SUM(C31:C32) -> 3740280.25 | D33: =SUM(D31:D32) -> 1 | E33: =SUM(E31:E32) -> 1
A35: HARD MONEY LOANS MARKET
D36: % OF | E36: % OF | F36: RANK BY | G36: RANK BY
A37: TITLECOMPANY | B37: CLOSINGS | C37: DOLLAR VOLUME | D37: CLOSINGS | E37: DOLLAR VOLUME | F37: CLOSINGS | G37: DOLLAR VOLUME
A38: Ticor Title | B38: 1 | C38: 285000 | D38: =B38/$B$40 -> 0.5 | E38: =C38/$C$40 -> 0.6884640006 | F38: 1 | G38: 1
A39: Western Title | B39: 1 | C39: 128965 | D39: =B39/$B$40 -> 0.5 | E39: =C39/$C$40 -> 0.3115359994 | F39: 1 | G39: 2
A40: GRAND TOTAL | B40: =SUM(B38:B39) -> 2 | C40: =SUM(C38:C39) -> 413965 | D40: =SUM(D38:D39) -> 1 | E40: =SUM(E38:E39) -> 1
A43: Information provided by Datasource
A44: www.datasourcenev.com

Sheet BRANCH SALES TRACKING
A1: BUILDER/DEVELOPER | B1: (All)
A2: PROPTYPE | B2: (All)
D4: Values
A5: TITLE COMPANY | B5: BRANCH | C5: EO | D5: CLOSINGS | E5: DOLLAR VOL. | F5: % OF CLOSINGS | G5: % OF DOLLAR VOL.
A6: Acme Title and Escrow | D6: 1 | E6: 20000 | F6: 0.007194244604 | G6: 0.0004007977247
B7: LANDER | D7: 1 | E7: 20000 | F7: 0.007194244604 | G7: 0.0004007977247
C8: YC | D8: 1 | E8: 20000 | F8: 0.007194244604 | G8: 0.0004007977247
A10: First American Title | D10: 7 | E10: 2631601 | F10: 0.05035971223 | G10: 0.05273698466
B11: KIETZKE | D11: 2 | E11: 686000 | F11: 0.01438848921 | G11: 0.01374736196
C12: TK | D12: 2 | E12: 686000 | F12: 0.01438848921 | G12: 0.01374736196
B14: SPARKS | D14: 5 | E14: 1945601 | F14: 0.03597122302 | G14: 0.0389896227
C15: JP | D15: 5 | E15: 1945601 | F15: 0.03597122302 | G15: 0.0389896227
A17: First Centennial Title | D17: 20 | E17: 4662400 | F17: 0.1438848921 | G17: 0.09343396558
B18: CARSON CITY | D18: 14 | E18: 3413900 | F18: 0.1007194245 | G18: 0.06841416762
C19: 23 | D19: 1 | E19: 470000 | F19: 0.007194244604 | G19: 0.009418746531
C20: 18 | D20: 6 | E20: 1278900 | F20: 0.04316546763 | G20: 0.02562901051
C21: 17 | D21: 7 | E21: 1665000 | F21: 0.05035971223 | G21: 0.03336641058
B23: DAMONTE | D23: 1 | E23: 270000 | F23: 0.007194244604 | G23: 0.005410769284
C24: 24 | D24: 1 | E24: 270000 | F24: 0.007194244604 | G24: 0.005410769284
B26: LAKESIDE | D26: 1 | E26: 280000 | F26: 0.007194244604 | G26: 0.005611168146
C27: 5 | D27: 1 | E27: 280000 | F27: 0.007194244604 | G27: 0.005611168146
B29: RIDGEVIEW | D29: 3 | E29: 448500 | F29: 0.02158273381 | G29: 0.008987888977
C30: 15 | D30: 2 | E30: 216500 | F30: 0.01438848921 | G30: 0.00433863537
C31: 9 | D31: 1 | E31: 232000 | F31: 0.007194244604 | G31: 0.004649253607
B33: SPARKS | D33: 1 | E33: 250000 | F33: 0.007194244604 | G33: 0.005009971559
C34: 21 | D34: 1 | E34: 250000 | F34: 0.007194244604 | G34: 0.005009971559
A36: North American Title | D36: 1 | E36: 133000 | F36: 0.007194244604 | G36: 0.002665304869
B37: HAMMILL | D37: 1 | E37: 133000 | F37: 0.007194244604 | G37: 0.002665304869
C38: KM | D38: 1 | E38: 133000 | F38: 0.007194244604 | G38: 0.002665304869
A40: Ticor Title | D40: 39 | E40: 10642527 | F40: 0.2805755396 | G40: 0.2132750303
B41: CARSON CITY | D41: 15 | E41: 3650000 | F41: 0.1079136691 | G41: 0.07314558476
C42: DKD | D42: 10 | E42: 2884000 | F42: 0.07194244604 | G42: 0.0577950319
C43: DC | D43: 5 | E43: 766000 | F43: 0.03597122302 | G43: 0.01535055286
B45: FERNLEY | D45: 18 | E45: 4886527 | F45: 0.1294964029 | G45: 0.09792544517
C46: DNO | D46: 18 | E46: 4886527 | F46: 0.1294964029 | G46: 0.09792544517
B48: GARDNERVILLE | D48: 1 | E48: 410000 | F48: 0.007194244604 | G48: 0.008216353356
C49: RLT | D49: 1 | E49: 410000 | F49: 0.007194244604 | G49: 0.008216353356
B51: KIETZKE | D51: 2 | E51: 938000 | F51: 0.01438848921 | G51: 0.01879741329
C52: AE | D52: 2 | E52: 938000 | F52: 0.01438848921 | G52: 0.01879741329
B54: LAKESIDE | D54: 3 | E54: 758000 | F54: 0.02158273381 | G54: 0.01519023377
C55: JN | D55: 2 | E55: 478000 | F55: 0.01438848921 | G55: 0.00957906562
C56: SL | D56: 1 | E56: 280000 | F56: 0.007194244604 | G56: 0.005611168146
A58: Toiyabe Title | D58: 1 | E58: 334900 | F58: 0.007194244604 | G58: 0.0067113579
B59: MCCARRAN | D59: 1 | E59: 334900 | F59: 0.007194244604 | G59: 0.0067113579
C60: JH | D60: 1 | E60: 334900 | F60: 0.007194244604 | G60: 0.0067113579
A62: Western Title | D62: 67 | E62: 30600554.88 | F62: 0.4820143885 | G62: 0.6132316385
B63: CARSON CITY | D63: 7 | E63: 2347458 | F63: 0.05035971223 | G63: 0.04704279126
C64: AMG | D64: 4 | E64: 1552458 | F64: 0.02877697842 | G64: 0.03111108171
C65: KDJ | D65: 3 | E65: 795000 | F65: 0.02158273381 | G65: 0.01593170956
B67: FERNLEY | D67: 18 | E67: 4880996.88 | F67: 0.1294964029 | G67: 0.09781462219
C68: EMB | D68: 8 | E68: 2228251 | F68: 0.05755395683 | G68: 0.04465389654
C69: MLC | D69: 5 | E69: 1153900 | F69: 0.03597122302 | G69: 0.02312402473
C70: FLY | D70: 5 | E70: 1498845.88 | F70: 0.03597122302 | G70: 0.03003670092
B72: GARDNERVILLE | D72: 6 | E72: 1559500 | F72: 0.04316546763 | G72: 0.03125220258
C73: ARJ | D73: 2 | E73: 309000 | F73: 0.01438848921 | G73: 0.006192324847
C74: WLD | D74: 2 | E74: 958500 | F74: 0.01438848921 | G74: 0.01920823096
C75: TEA | D75: 1 | E75: 248000 | F75: 0.007194244604 | G75: 0.004969891786
C76: SLA | D76: 1 | E76: 44000 | F76: 0.007194244604 | G76: 0.0008817549944
B78: KIETZKE | D78: 12 | E78: 18030700 | F78: 0.08633093525 | G78: 0.3613331767
C79: JMS | D79: 3 | E79: 742800 | F79: 0.02158273381 | G79: 0.0148856275
C80: MDD | D80: 2 | E80: 367000 | F80: 0.01438848921 | G80: 0.007354638248
C81: MLM | D81: 1 | E81: 247000 | F81: 0.007194244604 | G81: 0.0049498519
C82: PAH | D82: 2 | E82: 810000 | F82: 0.01438848921 | G82: 0.01623230785
C83: SAB | D83: 3 | E83: 759900 | F83: 0.02158273381 | G83: 0.01522830955
C84: RTO | D84: 1 | E84: 15104000 | F84: 0.007194244604 | G84: 0.3026824417
B86: SOUTH KIETZKE | D86: 7 | E86: 1605800 | F86: 0.05035971223 | G86: 0.03218004932
C87: ASK | D87: 4 | E87: 851800 | F87: 0.02877697842 | G87: 0.0170699751
C88: CKL | D88: 2 | E88: 529000 | F88: 0.01438848921 | G88: 0.01060109982
C89: MIF | D89: 1 | E89: 225000 | F89: 0.007194244604 | G89: 0.004508974403
B91: YERINGTON | D91: 17 | E91: 2176100 | F91: 0.1223021583 | G91: 0.04360879644
C92: CRB | D92: 11 | E92: 1131200 | F92: 0.07913669065 | G92: 0.02266911931
C93: SJL | D93: 6 | E93: 1044900 | F93: 0.04316546763 | G93: 0.02093967713
A95: Signature Title | D95: 3 | E95: 875500 | F95: 0.02158273381 | G95: 0.0175449204
B96: MINDEN | D96: 1 | E96: 358000 | F96: 0.007194244604 | G96: 0.007174279272
C97: NF | D97: 1 | E97: 358000 | F97: 0.007194244604 | G97: 0.007174279272
B99: RENO CORPORATE | D99: 2 | E99: 517500 | F99: 0.01438848921 | G99: 0.01037064113
C100: FF | D100: 1 | E100: 300000 | F100: 0.007194244604 | G100: 0.006011965871
C101: DP | D101: 1 | E101: 217500 | F101: 0.007194244604 | G101: 0.004358675256
A103: Grand Total | D103: 139 | E103: 49900482.88 | F103: 1 | G103: 1

Sheet LENDER TRACKING
A1: TYPELOAN | B1: (All)
C3: Values
A4: LENDER | B4: TITLE COMPANY | C4: CLOSINGS | D4: DOLLAR VOL. | E4: % OF CLOSINGS | F4: % OF DOLLAR VOL.
A5: ALL WESTERN MORTGAGE INC | C5: 2 | D5: 444410 | E5: 0.01724137931 | F5: 0.008962123674
B6: North American Title | C6: 1 | D6: 218410 | E6: 0.008620689655 | F6: 0.004404530572
B7: Ticor Title | C7: 1 | D7: 226000 | E7: 0.008620689655 | F7: 0.004557593102
A9: AMERICAN PACIFIC MORTGAGE CORPORATION | C9: 2 | D9: 508427 | E9: 0.01724137931 | F9: 0.01025311234
B10: First Centennial Title | C10: 1 | D10: 217364 | E10: 0.008620689655 | F10: 0.004383436579
B11: Ticor Title | C11: 1 | D11: 291063 | E11: 0.008620689655 | F11: 0.005869675756
A13: AXIA FINANCIAL LLC | C13: 1 | D13: 110000 | E13: 0.008620689655 | F13: 0.002218297527
B14: Stewart Title | C14: 1 | D14: 110000 | E14: 0.008620689655 | F14: 0.002218297527
A16: FINANCE OF AMERICA MORTGAGE LLC | C16: 4 | D16: 849974 | E16: 0.03448275862 | F16: 0.01714086566
B17: Ticor Title | C17: 2 | D17: 492474 | E17: 0.01724137931 | F17: 0.009931398695
B18: Western Title | C18: 2 | D18: 357500 | E18: 0.01724137931 | F18: 0.007209466964
A20: GREATER NEVADA MORTGAGE | C20: 17 | D20: 3204555 | E20: 0.1465517241 | F20: 0.06462414939
B21: First Centennial Title | C21: 5 | D21: 1139035 | E21: 0.04310344828 | F21: 0.0229701684
B22: Ticor Title | C22: 10 | D22: 1597220 | E22: 0.08620689655 | F22: 0.03221008342
B23: Western Title | C23: 2 | D23: 468300 | E23: 0.01724137931 | F23: 0.009443897564
A25: GUILD MORTGAGE COMPANY | C25: 22 | D25: 5179591 | E25: 0.1896551724 | F25: 0.1044533992
B26: First American Title | C26: 4 | D26: 991626 | E26: 0.03448275862 | F26: 0.01999746822
B27: Ticor Title | C27: 14 | D27: 3342583 | E27: 0.1206896552 | F27: 0.06740766913
B28: Toiyabe Title | C28: 1 | D28: 275082 | E28: 0.008620689655 | F28: 0.005547397458
B29: Western Title | C29: 2 | D29: 460300 | E29: 0.01724137931 | F29: 0.009282566835
B30: Stewart Title | C30: 1 | D30: 110000 | E30: 0.008620689655 | F30: 0.002218297527
A32: HERITAGE BANK OF NEVADA | C32: 1 | D32: 1450000 | E32: 0.008620689655 | F32: 0.02924119468
B33: First American Title | C33: 1 | D33: 1450000 | E33: 0.008620689655 | F33: 0.02924119468
A35: HOMEOWNERS FINANCIAL GROUP USA LLC | C35: 1 | D35: 322000 | E35: 0.008620689655 | F35: 0.006493561853
B36: Western Title | C36: 1 | D36: 322000 | E36: 0.008620689655 | F36: 0.006493561853
A38: ISERVE RESIDENTIAL LENDING LLC | C38: 2 | D38: 539900 | E38: 0.01724137931 | F38: 0.01088780759
B39: First Centennial Title | C39: 1 | D39: 249900 | E39: 0.008620689655 | F39: 0.005039568655
B40: North American Title | C40: 1 | D40: 290000 | E40: 0.008620689655 | F40: 0.005848238936
A42: LOANDEPOT.COM LLC | C42: 1 | D42: 320000 | E42: 0.008620689655 | F42: 0.00645322917
B43: Western Title | C43: 1 | D43: 320000 | E43: 0.008620689655 | F43: 0.00645322917
A45: NEVADA STATE BANK | C45: 2 | D45: 666000 | E45: 0.01724137931 | F45: 0.01343078321
B46: Ticor Title | C46: 1 | D46: 216000 | E46: 0.008620689655 | F46: 0.00435592969
B47: Western Title | C47: 1 | D47: 450000 | E47: 0.008620689655 | F47: 0.009074853521
A49: NEW AMERICAN FUNDING | C49: 7 | D49: 1789166 | E49: 0.06034482759 | F49: 0.03608093194
B50: Western Title | C50: 7 | D50: 1789166 | E50: 0.06034482759 | F50: 0.03608093194
A52: PLUMAS BANK | C52: 1 | D52: 25000 | E52: 0.008620689655 | F52: 0.0005041585289
B53: First Centennial Title | C53: 1 | D53: 25000 | E53: 0.008620689655 | F53: 0.0005041585289
A55: PRIMELENDING | C55: 10 | D55: 2181253 | E55: 0.08620689655 | F55: 0.04398789215
B56: First American Title | C56: 1 | D56: 169000 | E56: 0.008620689655 | F56: 0.003408111656
B57: First Centennial Title | C57: 1 | D57: 152500 | E57: 0.008620689655 | F57: 0.003075367027
B58: Ticor Title | C58: 5 | D58: 1018753 | E58: 0.04310344828 | F58: 0.02054452055
B59: Western Title | C59: 3 | D59: 841000 | E59: 0.02586206897 | F59: 0.01695989291
A61: QUICKEN LOANS INC | C61: 1 | D61: 379411 | E61: 0.008620689655 | F61: 0.007651331665
B62: Ticor Title | C62: 1 | D62: 379411 | E62: 0.008620689655 | F62: 0.007651331665
A64: RESIDENTIAL BANCORP | C64: 1 | D64: 253500 | E64: 0.008620689655 | F64: 0.005112167483
B65: First Centennial Title | C65: 1 | D65: 253500 | E65: 0.008620689655 | F65: 0.005112167483
A67: SIERRA PACIFIC MORTGAGE COMPANY INC | C67: 1 | D67: 254000 | E67: 0.008620689655 | F67: 0.005122250654
B68: Ticor Title | C68: 1 | D68: 254000 | E68: 0.008620689655 | F68: 0.005122250654
A70: SUMMIT FUNDING INC | C70: 8 | D70: 2112878 | E70: 0.06896551724 | F70: 0.04260901857
B71: First Centennial Title | C71: 1 | D71: 262200 | E71: 0.008620689655 | F71: 0.005287614652
B72: Ticor Title | C72: 5 | D72: 1273778 | E72: 0.04310344828 | F72: 0.02568744171
B73: Western Title | C73: 2 | D73: 576900 | E73: 0.01724137931 | F73: 0.01163396221
A75: UMPQUA BANK | C75: 1 | D75: 302000 | E75: 0.008620689655 | F75: 0.00609023503
B76: Western Title | C76: 1 | D76: 302000 | E76: 0.008620689655 | F76: 0.00609023503
A78: UNITED FEDERAL CREDIT UNION | C78: 2 | D78: 490000 | E78: 0.01724137931 | F78: 0.009881507167
B79: First Centennial Title | C79: 2 | D79: 490000 | E79: 0.01724137931 | F79: 0.009881507167
A81: UNITED WHOLESALE MORTGAGE | C81: 2 | D81: 420150 | E81: 0.01724137931 | F81: 0.008472888237
B82: First American Title | C82: 1 | D82: 198000 | E82: 0.008620689655 | F82: 0.003992935549
B83: Ticor Title | C83: 1 | D83: 222150 | E83: 0.008620689655 | F83: 0.004479952688
A85: WELLS FARGO BANK NA | C85: 3 | D85: 19535000 | E85: 0.02586206897 | F85: 0.3939494745
B86: Ticor Title | C86: 1 | D86: 19200000 | E86: 0.008620689655 | F86: 0.3871937502
B87: Western Title | C87: 2 | D87: 335000 | E87: 0.01724137931 | F87: 0.006755724288
A89: PRIMARY RESIDENTIAL MORTGAGE INC | C89: 1 | D89: 452221 | E89: 0.008620689655 | F89: 0.009119642965
B90: Ticor Title | C90: 1 | D90: 452221 | E90: 0.008620689655 | F90: 0.009119642965
A92: AMERICAN FINANCIAL RESOURCES INC | C92: 1 | D92: 154330 | E92: 0.008620689655 | F92: 0.003112271431
B93: First American Title | C93: 1 | D93: 154330 | E93: 0.008620689655 | F93: 0.003112271431
A95: FINANCIAL HORIZONS CREDIT UNION | C95: 1 | D95: 118000 | E95: 0.008620689655 | F95: 0.002379628257
B96: Western Title | C96: 1 | D96: 118000 | E96: 0.008620689655 | F96: 0.002379628257
A98: LONE MORTGAGE INC | C98: 2 | D98: 508209 | E98: 0.01724137931 | F98: 0.01024871607
B99: First American Title | C99: 2 | D99: 508209 | E99: 0.01724137931 | F99: 0.01024871607
A101: FLAGSTAR BANK | C101: 1 | D101: 394000 | E101: 0.008620689655 | F101: 0.007945538416
B102: First American Title | C102: 1 | D102: 394000 | E102: 0.008620689655 | F102: 0.007945538416
A104: SIERRA PACIFIC MORTGAGE CO INC | C104: 1 | D104: 303000 | E104: 0.008620689655 | F104: 0.006110401371
B105: First Centennial Title | C105: 1 | D105: 303000 | E105: 0.008620689655 | F105: 0.006110401371
A107: AMERICAN PACIFIC MORTGAGE CORP | C107: 1 | D107: 260500 | E107: 0.008620689655 | F107: 0.005253331872
B108: First Centennial Title | C108: 1 | D108: 260500 | E108: 0.008620689655 | F108: 0.005253331872
A110: CMG FINANCIAL | C110: 1 | D110: 199000 | E110: 0.008620689655 | F110: 0.00401310189
B111: First Centennial Title | C111: 1 | D111: 199000 | E111: 0.008620689655 | F111: 0.00401310189
A113: MOVEMENT MORTGAGE LLC | C113: 9 | D113: 2293779 | E113: 0.0775862069 | F113: 0.04625712985
B114: First Centennial Title | C114: 1 | D114: 200000 | E114: 0.008620689655 | F114: 0.004033268232
B115: North American Title | C115: 3 | D115: 861237 | E115: 0.02586206897 | F115: 0.01736799916
B116: Ticor Title | C116: 5 | D116: 1232542 | E116: 0.04310344828 | F116: 0.02485586246
A118: GENEVA FINANCIAL LLC | C118: 1 | D118: 268900 | E118: 0.008620689655 | F118: 0.005422729137
B119: First Centennial Title | C119: 1 | D119: 268900 | E119: 0.008620689655 | F119: 0.005422729137
A121: OLIN BILL D TRUSTEE; OLIN LORI TRUSTEE; OLIN BILL & LORI TRUST | C121: 1 | D121: 285000 | E121: 0.008620689655 | F121: 0.00574740723
B122: Ticor Title | C122: 1 | D122: 285000 | E122: 0.008620689655 | F122: 0.00574740723
A124: NEWREZ LLC | C124: 1 | D124: 419178 | E124: 0.008620689655 | F124: 0.008453286554
B125: Western Title | C125: 1 | D125: 419178 | E125: 0.008620689655 | F125: 0.008453286554
A127: ALL PRO FUNDING IV LLC | C127: 1 | D127: 2290280.25 | E127: 0.008620689655 | F127: 0.04618657287
B128: Western Title | C128: 1 | D128: 2290280.25 | E128: 0.008620689655 | F128: 0.04618657287
A130: BENITZ BRIAN R TRUSTEE; BENITZ JACQUELINE M TRUSTEE; BENITZ TRUST | C130: 1 | D130: 128965 | E130: 0.008620689655 | F130: 0.002600752187
B131: Western Title | C131: 1 | D131: 128965 | E131: 0.008620689655 | F131: 0.002600752187
A133: COMMERCE HOME MORTGAGE LLC | C133: 1 | D133: 175000 | E133: 0.008620689655 | F133: 0.003529109703
B134: Western Title | C134: 1 | D134: 175000 | E134: 0.008620689655 | F134: 0.003529109703
A136: Grand Total | C136: 116 | D136: 49587577.25 | E136: 1 | F136: 1

Sheet SALES_LIST (hidden)
A1: FULLNAME | B1: RECBY | C1: BRANCH | D1: EO | E1: PROPTYPE | F1: DOCNUM | G1: AMOUNT | H1: SUB | I1: INSURED | J1: RECDATE | K1: Last Row: | L1: 140
A2: Acme Title and Escrow | B2: ACT | C2: LANDER | D2: YC | E2: VACANT LAND | F2: 613770 | G2: 20000 | H2: NO | I2: YES | J2: 2020-04-16
A3: First American Title | B3: FA | C3: SPARKS | D3: JP | E3: VACANT LAND | F3: 613735 | G3: 570000 | H3: NO | I3: YES | J3: 2020-04-15
A4: First American Title | B4: FA | C4: SPARKS | D4: JP | E4: SINGLE FAM RES. | F4: 613452 | G4: 458774 | H4: YES | I4: YES | J4: 2020-04-09
A5: First American Title | B5: FA | C5: SPARKS | D5: JP | E5: SINGLE FAM RES. | F5: 613240 | G5: 292949 | H5: YES | I5: YES | J5: 2020-04-06
A6: First American Title | B6: FA | C6: KIETZKE | D6: TK | E6: SINGLE FAM RES. | F6: 614403 | G6: 399000 | H6: NO | I6: YES | J6: 2020-04-30
A7: First American Title | B7: FA | C7: SPARKS | D7: JP | E7: SINGLE FAM RES. | F7: 614440 | G7: 324386 | H7: YES | I7: YES | J7: 2020-04-30
A8: First American Title | B8: FA | C8: SPARKS | D8: JP | E8: SINGLE FAM RES. | F8: 613208 | G8: 299492 | H8: YES | I8: YES | J8: 2020-04-03
A9: First American Title | B9: FA | C9: KIETZKE | D9: TK | E9: SINGLE FAM RES. | F9: 613353 | G9: 287000 | H9: NO | I9: YES | J9: 2020-04-07
A10: First Centennial Title | B10: FC | C10: CARSON CITY | D10: 18 | E10: VACANT LAND | F10: 613205 | G10: 43000 | H10: NO | I10: YES | J10: 2020-04-03
A11: First Centennial Title | B11: FC | C11: SPARKS | D11: 21 | E11: SINGLE FAM RES. | F11: 613523 | G11: 250000 | H11: NO | I11: YES | J11: 2020-04-10
A12: First Centennial Title | B12: FC | C12: CARSON CITY | D12: 23 | E12: SINGLE FAM RES. | F12: 613246 | G12: 470000 | H12: NO | I12: YES | J12: 2020-04-06
A13: First Centennial Title | B13: FC | C13: RIDGEVIEW | D13: 15 | E13: SINGLE FAM RES. | F13: 614200 | G13: 200000 | H13: NO | I13: YES | J13: 2020-04-27
A14: First Centennial Title | B14: FC | C14: DAMONTE | D14: 24 | E14: SINGLE FAM RES. | F14: 613291 | G14: 270000 | H14: NO | I14: YES | J14: 2020-04-07
A15: First Centennial Title | B15: FC | C15: CARSON CITY | D15: 17 | E15: SINGLE FAM RES. | F15: 614002 | G15: 367000 | H15: NO | I15: YES | J15: 2020-04-22
A16: First Centennial Title | B16: FC | C16: RIDGEVIEW | D16: 9 | E16: SINGLE FAM RES. | F16: 613512 | G16: 232000 | H16: NO | I16: YES | J16: 2020-04-10
A17: First Centennial Title | B17: FC | C17: CARSON CITY | D17: 17 | E17: VACANT LAND | F17: 613560 | G17: 10000 | H17: NO | I17: YES | J17: 2020-04-13
A18: First Centennial Title | B18: FC | C18: LAKESIDE | D18: 5 | E18: SINGLE FAM RES. | F18: 613691 | G18: 280000 | H18: NO | I18: YES | J18: 2020-04-14
A19: First Centennial Title | B19: FC | C19: CARSON CITY | D19: 18 | E19: SINGLE FAM RES. | F19: 613744 | G19: 269000 | H19: NO | I19: YES | J19: 2020-04-15
A20: First Centennial Title | B20: FC | C20: RIDGEVIEW | D20: 15 | E20: VACANT LAND | F20: 613811 | G20: 16500 | H20: NO | I20: YES | J20: 2020-04-17
A21: First Centennial Title | B21: FC | C21: CARSON CITY | D21: 18 | E21: MOBILE HOME | F21: 613158 | G21: 169900 | H21: NO | I21: YES | J21: 2020-04-02
A22: First Centennial Title | B22: FC | C22: CARSON CITY | D22: 18 | E22: MOBILE HOME | F22: 613820 | G22: 279000 | H22: NO | I22: YES | J22: 2020-04-17
A23: First Centennial Title | B23: FC | C23: CARSON CITY | D23: 17 | E23: VACANT LAND | F23: 614128 | G23: 80000 | H23: NO | I23: YES | J23: 2020-04-24
A24: First Centennial Title | B24: FC | C24: CARSON CITY | D24: 17 | E24: COMMERCIAL | F24: 614145 | G24: 86000 | H24: NO | I24: YES | J24: 2020-04-24
A25: First Centennial Title | B25: FC | C25: CARSON CITY | D25: 17 | E25: SINGLE FAM RES. | F25: 613472 | G25: 445000 | H25: NO | I25: YES | J25: 2020-04-10
A26: First Centennial Title | B26: FC | C26: CARSON CITY | D26: 18 | E26: SINGLE FAM RES. | F26: 614197 | G26: 265000 | H26: NO | I26: YES | J26: 2020-04-27
A27: First Centennial Title | B27: FC | C27: CARSON CITY | D27: 17 | E27: SINGLE FAM RES. | F27: 613990 | G27: 297000 | H27: NO | I27: YES | J27: 2020-04-21
A28: First Centennial Title | B28: FC | C28: CARSON CITY | D28: 18 | E28: MOBILE HOME | F28: 614043 | G28: 253000 | H28: NO | I28: YES | J28: 2020-04-22
A29: First Centennial Title | B29: FC | C29: CARSON CITY | D29: 17 | E29: SINGLE FAM RES. | F29: 613927 | G29: 380000 | H29: NO | I29: YES | J29: 2020-04-20
A30: North American Title | B30: NA | C30: HAMMILL | D30: KM | E30: SINGLE FAM RES. | F30: 614023 | G30: 133000 | H30: NO | I30: YES | J30: 2020-04-22
A31: Signature Title | B31: SIG | C31: MINDEN | D31: NF | E31: SINGLE FAM RES. | F31: 613562 | G31: 358000 | H31: NO | I31: YES | J31: 2020-04-13
A32: Signature Title | B32: SIG | C32: RENO CORPORATE | D32: FF | E32: SINGLE FAM RES. | F32: 613882 | G32: 300000 | H32: NO | I32: YES | J32: 2020-04-17
A33: Signature Title | B33: SIG | C33: RENO CORPORATE | D33: DP | E33: MOBILE HOME | F33: 613864 | G33: 217500 | H33: NO | I33: YES | J33: 2020-04-17
A34: Ticor Title | B34: TI | C34: CARSON CITY | D34: DKD | E34: SINGLE FAM RES. | F34: 613110 | G34: 595000 | H34: NO | I34: YES | J34: 2020-04-01
A35: Ticor Title | B35: TI | C35: FERNLEY | D35: DNO | E35: SINGLE FAM RES. | F35: 613932 | G35: 424711 | H35: NO | I35: YES | J35: 2020-04-20
A36: Ticor Title | B36: TI | C36: CARSON CITY | D36: DKD | E36: SINGLE FAM RES. | F36: 613176 | G36: 480000 | H36: NO | I36: YES | J36: 2020-04-03
A37: Ticor Title | B37: TI | C37: KIETZKE | D37: AE | E37: SINGLE FAM RES. | F37: 613343 | G37: 575000 | H37: NO | I37: YES | J37: 2020-04-07
A38: Ticor Title | B38: TI | C38: CARSON CITY | D38: DC | E38: MOBILE HOME | F38: 613937 | G38: 175000 | H38: NO | I38: YES | J38: 2020-04-20
A39: Ticor Title | B39: TI | C39: GARDNERVILLE | D39: RLT | E39: SINGLE FAM RES. | F39: 613732 | G39: 410000 | H39: NO | I39: YES | J39: 2020-04-15
A40: Ticor Title | B40: TI | C40: FERNLEY | D40: DNO | E40: SINGLE FAM RES. | F40: 613305 | G40: 235000 | H40: NO | I40: YES | J40: 2020-04-07
A41: Ticor Title | B41: TI | C41: FERNLEY | D41: DNO | E41: SINGLE FAM RES. | F41: 613516 | G41: 338000 | H41: NO | I41: YES | J41: 2020-04-10
A42: Ticor Title | B42: TI | C42: FERNLEY | D42: DNO | E42: SINGLE FAM RES. | F42: 614399 | G42: 342850 | H42: NO | I42: YES | J42: 2020-04-30
A43: Ticor Title | B43: TI | C43: CARSON CITY | D43: DC | E43: MOBILE HOME | F43: 614410 | G43: 220500 | H43: NO | I43: YES | J43: 2020-04-30
A44: Ticor Title | B44: TI | C44: CARSON CITY | D44: DKD | E44: VACANT LAND | F44: 614105 | G44: 130000 | H44: NO | I44: YES | J44: 2020-04-23
A45: Ticor Title | B45: TI | C45: CARSON CITY | D45: DKD | E45: SINGLE FAM RES. | F45: 613089 | G45: 281700 | H45: YES | I45: YES | J45: 2020-04-01
A46: Ticor Title | B46: TI | C46: FERNLEY | D46: DNO | E46: SINGLE FAM RES. | F46: 614320 | G46: 240000 | H46: NO | I46: YES | J46: 2020-04-29
A47: Ticor Title | B47: TI | C47: FERNLEY | D47: DNO | E47: SINGLE FAM RES. | F47: 614252 | G47: 315000 | H47: NO | I47: YES | J47: 2020-04-28
A48: Ticor Title | B48: TI | C48: LAKESIDE | D48: SL | E48: SINGLE FAM RES. | F48: 613166 | G48: 280000 | H48: NO | I48: YES | J48: 2020-04-02
A49: Ticor Title | B49: TI | C49: FERNLEY | D49: DNO | E49: VACANT LAND | F49: 614013 | G49: 17000 | H49: NO | I49: YES | J49: 2020-04-22
A50: Ticor Title | B50: TI | C50: FERNLEY | D50: DNO | E50: MOBILE HOME | F50: 613720 | G50: 77566 | H50: NO | I50: YES | J50: 2020-04-15
A51: Ticor Title | B51: TI | C51: LAKESIDE | D51: JN | E51: SINGLE FAM RES. | F51: 614137 | G51: 258000 | H51: NO | I51: YES | J51: 2020-04-24
A52: Ticor Title | B52: TI | C52: FERNLEY | D52: DNO | E52: SINGLE FAM RES. | F52: 614406 | G52: 243000 | H52: NO | I52: YES | J52: 2020-04-30
A53: Ticor Title | B53: TI | C53: CARSON CITY | D53: DKD | E53: SINGLE FAM RES. | F53: 614177 | G53: 385000 | H53: NO | I53: YES | J53: 2020-04-24
A54: Ticor Title | B54: TI | C54: FERNLEY | D54: DNO | E54: SINGLE FAM RES. | F54: 613324 | G54: 365900 | H54: NO | I54: YES | J54: 2020-04-07
A55: Ticor Title | B55: TI | C55: KIETZKE | D55: AE | E55: SINGLE FAM RES. | F55: 613453 | G55: 363000 | H55: NO | I55: YES | J55: 2020-04-09
A56: Ticor Title | B56: TI | C56: CARSON CITY | D56: DC | E56: COMMERCIAL | F56: 614371 | G56: 43500 | H56: NO | I56: YES | J56: 2020-04-30
A57: Ticor Title | B57: TI | C57: LAKESIDE | D57: JN | E57: MOBILE HOME | F57: 614416 | G57: 220000 | H57: NO | I57: YES | J57: 2020-04-30
A58: Ticor Title | B58: TI | C58: FERNLEY | D58: DNO | E58: SINGLE FAM RES. | F58: 614121 | G58: 203000 | H58: NO | I58: YES | J58: 2020-04-24
A59: Ticor Title | B59: TI | C59: FERNLEY | D59: DNO | E59: MOBILE HOME | F59: 613184 | G59: 277000 | H59: NO | I59: YES | J59: 2020-04-03
A60: Ticor Title | B60: TI | C60: CARSON CITY | D60: DC | E60: COMMERCIAL | F60: 614373 | G60: 42000 | H60: NO | I60: YES | J60: 2020-04-30
A61: Ticor Title | B61: TI | C61: FERNLEY | D61: DNO | E61: SINGLE FAM RES. | F61: 613913 | G61: 259000 | H61: NO | I61: YES | J61: 2020-04-20
A62: Ticor Title | B62: TI | C62: FERNLEY | D62: DNO | E62: SINGLE FAM RES. | F62: 614387 | G62: 255000 | H62: NO | I62: YES | J62: 2020-04-30
A63: Ticor Title | B63: TI | C63: CARSON CITY | D63: DKD | E63: VACANT LAND | F63: 614393 | G63: 125000 | H63: NO | I63: YES | J63: 2020-04-30
A64: Ticor Title | B64: TI | C64: CARSON CITY | D64: DKD | E64: SINGLE FAM RES. | F64: 613687 | G64: 250000 | H64: NO | I64: YES | J64: 2020-04-14
A65: Ticor Title | B65: TI | C65: FERNLEY | D65: DNO | E65: SINGLE FAM RES. | F65: 613464 | G65: 262500 | H65: NO | I65: YES | J65: 2020-04-10
A66: Ticor Title | B66: TI | C66: FERNLEY | D66: DNO | E66: SINGLE FAM RES. | F66: 613409 | G66: 240000 | H66: NO | I66: YES | J66: 2020-04-08
A67: Ticor Title | B67: TI | C67: CARSON CITY | D67: DKD | E67: MOBILE HOME | F67: 613475 | G67: 250000 | H67: NO | I67: YES | J67: 2020-04-10
A68: Ticor Title | B68: TI | C68: FERNLEY | D68: DNO | E68: SINGLE FAM RES. | F68: 613509 | G68: 560000 | H68: NO | I68: YES | J68: 2020-04-10
A69: Ticor Title | B69: TI | C69: FERNLEY | D69: DNO | E69: MOBILE HOME | F69: 613403 | G69: 231000 | H69: NO | I69: YES | J69: 2020-04-08
A70: Ticor Title | B70: TI | C70: CARSON CITY | D70: DC | E70: SINGLE FAM RES. | F70: 613834 | G70: 285000 | H70: NO | I70: YES | J70: 2020-04-17
A71: Ticor Title | B71: TI | C71: CARSON CITY | D71: DKD | E71: MOBILE HOME | F71: 613653 | G71: 150000 | H71: NO | I71: YES | J71: 2020-04-13
A72: Ticor Title | B72: TI | C72: CARSON CITY | D72: DKD | E72: SINGLE FAM RES. | F72: 613870 | G72: 237300 | H72: YES | I72: YES | J72: 2020-04-17
A73: Toiyabe Title | B73: TT | C73: MCCARRAN | D73: JH | E73: SINGLE FAM RES. | F73: 613776 | G73: 334900 | H73: NO | I73: YES | J73: 2020-04-16
A74: Western Title | B74: WE | C74: KIETZKE | D74: SAB | E74: SINGLE FAM RES. | F74: 614354 | G74: 199900 | H74: NO | I74: YES | J74: 2020-04-29
A75: Western Title | B75: WE | C75: YERINGTON | D75: CRB | E75: MOBILE HOME | F75: 613838 | G75: 14500 | H75: NO | I75: YES | J75: 2020-04-17
A76: Western Title | B76: WE | C76: YERINGTON | D76: CRB | E76: VACANT LAND | F76: 613280 | G76: 55000 | H76: NO | I76: YES | J76: 2020-04-06
A77: Western Title | B77: WE | C77: FERNLEY | D77: MLC | E77: SINGLE FAM RES. | F77: 614401 | G77: 264900 | H77: NO | I77: YES | J77: 2020-04-30
A78: Western Title | B78: WE | C78: FERNLEY | D78: EMB | E78: SINGLE FAM RES. | F78: 614383 | G78: 395000 | H78: NO | I78: YES | J78: 2020-04-30
A79: Western Title | B79: WE | C79: FERNLEY | D79: EMB | E79: SINGLE FAM RES. | F79: 614033 | G79: 329900 | H79: NO | I79: YES | J79: 2020-04-22
A80: Western Title | B80: WE | C80: GARDNERVILLE | D80: WLD | E80: SINGLE FAM RES. | F80: 613358 | G80: 459500 | H80: NO | I80: YES | J80: 2020-04-07
A81: Western Title | B81: WE | C81: FERNLEY | D81: EMB | E81: SINGLE FAM RES. | F81: 614369 | G81: 380000 | H81: NO | I81: YES | J81: 2020-04-30
A82: Western Title | B82: WE | C82: SOUTH KIETZKE | D82: ASK | E82: SINGLE FAM RES. | F82: 614272 | G82: 390000 | H82: NO | I82: YES | J82: 2020-04-28
A83: Western Title | B83: WE | C83: FERNLEY | D83: MLC | E83: SINGLE FAM RES. | F83: 614350 | G83: 289000 | H83: NO | I83: YES | J83: 2020-04-29
A84: Western Title | B84: WE | C84: YERINGTON | D84: CRB | E84: VACANT LAND | F84: 613215 | G84: 16000 | H84: NO | I84: YES | J84: 2020-04-03
A85: Western Title | B85: WE | C85: GARDNERVILLE | D85: WLD | E85: SINGLE FAM RES. | F85: 614077 | G85: 499000 | H85: NO | I85: YES | J85: 2020-04-23
A86: Western Title | B86: WE | C86: FERNLEY | D86: MLC | E86: MOBILE HOME | F86: 613303 | G86: 220000 | H86: NO | I86: YES | J86: 2020-04-07
A87: Western Title | B87: WE | C87: CARSON CITY | D87: KDJ | E87: MOBILE HOME | F87: 614090 | G87: 236000 | H87: NO | I87: YES | J87: 2020-04-23
A88: Western Title | B88: WE | C88: YERINGTON | D88: SJL | E88: SINGLE FAM RES. | F88: 614180 | G88: 135000 | H88: NO | I88: YES | J88: 2020-04-24
A89: Western Title | B89: WE | C89: SOUTH KIETZKE | D89: ASK | E89: SINGLE FAM RES. | F89: 613219 | G89: 234900 | H89: NO | I89: YES | J89: 2020-04-03
A90: Western Title | B90: WE | C90: YERINGTON | D90: SJL | E90: SINGLE FAM RES. | F90: 613924 | G90: 300000 | H90: NO | I90: YES | J90: 2020-04-20
A91: Western Title | B91: WE | C91: YERINGTON | D91: CRB | E91: VACANT LAND | F91: 613213 | G91: 58000 | H91: NO | I91: YES | J91: 2020-04-03
A92: Western Title | B92: WE | C92: SOUTH KIETZKE | D92: ASK | E92: MOBILE HOME | F92: 614118 | G92: 219900 | H92: NO | I92: YES | J92: 2020-04-24
A93: Western Title | B93: WE | C93: FERNLEY | D93: FLY | E93: SINGLE FAM RES. | F93: 613190 | G93: 273900 | H93: YES | I93: YES | J93: 2020-04-03
A94: Western Title | B94: WE | C94: YERINGTON | D94: SJL | E94: SINGLE FAM RES. | F94: 613876 | G94: 75000 | H94: NO | I94: YES | J94: 2020-04-17
A95: Western Title | B95: WE | C95: KIETZKE | D95: JMS | E95: SINGLE FAM RES. | F95: 613867 | G95: 249900 | H95: NO | I95: YES | J95: 2020-04-17
A96: Western Title | B96: WE | C96: FERNLEY | D96: FLY | E96: SINGLE FAM RES. | F96: 614431 | G96: 269900 | H96: YES | I96: YES | J96: 2020-04-30
A97: Western Title | B97: WE | C97: SOUTH KIETZKE | D97: ASK | E97: VACANT LAND | F97: 613338 | G97: 7000 | H97: NO | I97: YES | J97: 2020-04-07
A98: Western Title | B98: WE | C98: SOUTH KIETZKE | D98: CKL | E98: SINGLE FAM RES. | F98: 613852 | G98: 269000 | H98: NO | I98: YES | J98: 2020-04-17
A99: Western Title | B99: WE | C99: CARSON CITY | D99: AMG | E99: SINGLE FAM RES. | F99: 613879 | G99: 674458 | H99: NO | I99: YES | J99: 2020-04-17
A100: Western Title | B100: WE | C100: GARDNERVILLE | D100: ARJ | E100: VACANT LAND | F100: 614435 | G100: 36000 | H100: NO | I100: YES | J100: 2020-04-30
A101: Western Title | B101: WE | C101: KIETZKE | D101: MLM | E101: SINGLE FAM RES. | F101: 614143 | G101: 247000 | H101: NO | I101: YES | J101: 2020-04-24
A102: Western Title | B102: WE | C102: CARSON CITY | D102: KDJ | E102: SINGLE FAM RES. | F102: 613307 | G102: 339000 | H102: NO | I102: YES | J102: 2020-04-07
A103: Western Title | B103: WE | C103: GARDNERVILLE | D103: TEA | E103: MOBILE HOME | F103: 614242 | G103: 248000 | H103: NO | I103: YES | J103: 2020-04-28
A104: Western Title | B104: WE | C104: FERNLEY | D104: EMB | E104: SINGLE FAM RES. | F104: 613986 | G104: 280000 | H104: NO | I104: YES | J104: 2020-04-21
A105: Western Title | B105: WE | C105: FERNLEY | D105: EMB | E105: SINGLE FAM RES. | F105: 614146 | G105: 255000 | H105: NO | I105: YES | J105: 2020-04-24
A106: Western Title | B106: WE | C106: KIETZKE | D106: MDD | E106: SINGLE FAM RES. | F106: 613862 | G106: 267000 | H106: NO | I106: YES | J106: 2020-04-17
A107: Western Title | B107: WE | C107: FERNLEY | D107: MLC | E107: MOBILE HOME | F107: 613792 | G107: 130000 | H107: NO | I107: YES | J107: 2020-04-16
A108: Western Title | B108: WE | C108: KIETZKE | D108: RTO | E108: COMMERCIAL | F108: 614098 | G108: 15104000 | H108: NO | I108: YES | J108: 2020-04-23
A109: Western Title | B109: WE | C109: FERNLEY | D109: FLY | E109: SINGLE FAM RES. | F109: 613502 | G109: 335145.88 | H109: YES | I109: YES | J109: 2020-04-10
A110: Western Title | B110: WE | C110: FERNLEY | D110: EMB | E110: SINGLE FAM RES. | F110: 613489 | G110: 175000 | H110: NO | I110: YES | J110: 2020-04-10
A111: Western Title | B111: WE | C111: FERNLEY | D111: FLY | E111: SINGLE FAM RES. | F111: 613479 | G111: 269900 | H111: YES | I111: YES | J111: 2020-04-10
A112: Western Title | B112: WE | C112: KIETZKE | D112: SAB | E112: SINGLE FAM RES. | F112: 613399 | G112: 315000 | H112: NO | I112: YES | J112: 2020-04-08
A113: Western Title | B113: WE | C113: YERINGTON | D113: SJL | E113: SINGLE FAM RES. | F113: 613364 | G113: 259900 | H113: NO | I113: YES | J113: 2020-04-07
A114: Western Title | B114: WE | C114: YERINGTON | D114: CRB | E114: MOBILE HOME | F114: 613156 | G114: 75000 | H114: NO | I114: YES | J114: 2020-04-02
A115: Western Title | B115: WE | C115: YERINGTON | D115: SJL | E115: SINGLE FAM RES. | F115: 613794 | G115: 235000 | H115: NO | I115: YES | J115: 2020-04-16
A116: Western Title | B116: WE | C116: YERINGTON | D116: CRB | E116: SINGLE FAM RES. | F116: 613146 | G116: 260000 | H116: NO | I116: YES | J116: 2020-04-02
A117: Western Title | B117: WE | C117: FERNLEY | D117: EMB | E117: SINGLE FAM RES. | F117: 613773 | G117: 207500 | H117: NO | I117: YES | J117: 2020-04-16
A118: Western Title | B118: WE | C118: GARDNERVILLE | D118: SLA | E118: VACANT LAND | F118: 613667 | G118: 44000 | H118: NO | I118: YES | J118: 2020-04-14
A119: Western Title | B119: WE | C119: CARSON CITY | D119: AMG | E119: SINGLE FAM RES. | F119: 613759 | G119: 250000 | H119: NO | I119: YES | J119: 2020-04-16
A120: Western Title | B120: WE | C120: CARSON CITY | D120: KDJ | E120: MOBILE HOME | F120: 613739 | G120: 220000 | H120: NO | I120: YES | J120: 2020-04-15
A121: Western Title | B121: WE | C121: YERINGTON | D121: CRB | E121: VACANT LAND | F121: 613389 | G121: 18000 | H121: NO | I121: YES | J121: 2020-04-08
A122: Western Title | B122: WE | C122: SOUTH KIETZKE | D122: CKL | E122: SINGLE FAM RES. | F122: 613700 | G122: 260000 | H122: NO | I122: YES | J122: 2020-04-14
A123: Western Title | B123: WE | C123: FERNLEY | D123: EMB | E123: SINGLE FAM RES. | F123: 614302 | G123: 205851 | H123: NO | I123: YES | J123: 2020-04-29
A124: Western Title | B124: WE | C124: FERNLEY | D124: FLY | E124: SINGLE FAM RES. | F124: 613650 | G124: 350000 | H124: YES | I124: YES | J124: 2020-04-13
A125: Western Title | B125: WE | C125: YERINGTON | D125: CRB | E125: SINGLE FAM RES. | F125: 613394 | G125: 210000 | H125: NO | I125: YES | J125: 2020-04-08
A126: Western Title | B126: WE | C126: KIETZKE | D126: MDD | E126: MOBILE HOME | F126: 614103 | G126: 100000 | H126: NO | I126: YES | J126: 2020-04-23
A127: Western Title | B127: WE | C127: YERINGTON | D127: CRB | E127: MOBILE HOME | F127: 613929 | G127: 232700 | H127: NO | I127: YES | J127: 2020-04-20
A128: Western Title | B128: WE | C128: KIETZKE | D128: PAH | E128: VACANT LAND | F128: 614330 | G128: 510000 | H128: NO | I128: YES | J128: 2020-04-29
A129: Western Title | B129: WE | C129: KIETZKE | D129: PAH | E129: VACANT LAND | F129: 613519 | G129: 300000 | H129: NO | I129: YES | J129: 2020-04-10
A130: Western Title | B130: WE | C130: SOUTH KIETZKE | D130: MIF | E130: SINGLE FAM RES. | F130: 613682 | G130: 225000 | H130: NO | I130: YES | J130: 2020-04-14
A131: Western Title | B131: WE | C131: CARSON CITY | D131: AMG | E131: SINGLE FAM RES. | F131: 613164 | G131: 363000 | H131: NO | I131: YES | J131: 2020-04-02
A132: Western Title | B132: WE | C132: KIETZKE | D132: JMS | E132: MOBILE HOME | F132: 613655 | G132: 229000 | H132: NO | I132: YES | J132: 2020-04-13
A133: Western Title | B133: WE | C133: GARDNERVILLE | D133: ARJ | E133: SINGLE FAM RES. | F133: 614172 | G133: 273000 | H133: NO | I133: YES | J133: 2020-04-24
A134: Western Title | B134: WE | C134: YERINGTON | D134: CRB | E134: COMMERCIAL | F134: 613112 | G134: 52000 | H134: NO | I134: YES | J134: 2020-04-01
A135: Western Title | B135: WE | C135: CARSON CITY | D135: AMG | E135: SINGLE FAM RES. | F135: 613396 | G135: 265000 | H135: NO | I135: YES | J135: 2020-04-08
A136: Western Title | B136: WE | C136: YERINGTON | D136: CRB | E136: SINGLE FAM RES. | F136: 613545 | G136: 140000 | H136: NO | I136: YES | J136: 2020-04-13
A137: Western Title | B137: WE | C137: KIETZKE | D137: JMS | E137: SINGLE FAM RES. | F137: 613920 | G137: 263900 | H137: NO | I137: YES | J137: 2020-04-20
A138: Western Title | B138: WE | C138: KIETZKE | D138: SAB | E138: MOBILE HOME | F138: 613521 | G138: 245000 | H138: NO | I138: YES | J138: 2020-04-10
A139: Western Title | B139: WE | C139: YERINGTON | D139: SJL | E139: VACANT LAND | F139: 613102 | G139: 40000 | H139: NO | I139: YES | J139: 2020-04-01
A140: Western Title | B140: WE | C140: FERNLEY | D140: MLC | E140: SINGLE FAM RES. | F140: 613935 | G140: 250000 | H140: NO | I140: YES | J140: 2020-04-20

Sheet LOANS_LIST (hidden)
A1: FULLNAME | B1: RECBY | C1: TYPELOAN | D1: APN | E1: DOCNUM | F1: AMOUNT | G1: RECDATE | H1: LENDER | L1: 117
A2: First American Title | B2: FA | C2: CONVENTIONAL | D2: 018-401-01 | E2: 613575 | F2: 154330 | G2: 2020-04-13 | H2: AMERICAN FINANCIAL RESOURCES INC
A3: First American Title | B3: FA | C3: CONVENTIONAL | D3: 019-286-02 | E3: 613297 | F3: 265150 | G3: 2020-04-07 | H3: GUILD MORTGAGE COMPANY
A4: First American Title | B4: FA | C4: CONSTRUCTION | D4: 020-701-03 | E4: 613849 | F4: 1450000 | G4: 2020-04-17 | H4: HERITAGE BANK OF NEVADA
A5: First American Title | B5: FA | C5: VA | D5: 022-211-04 | E5: 614009 | F5: 294867 | G5: 2020-04-22 | H5: LONE MORTGAGE INC
A6: First American Title | B6: FA | C6: FHA | D6: 020-714-16 | E6: 613111 | F6: 218152 | G6: 2020-04-01 | H6: GUILD MORTGAGE COMPANY
A7: First American Title | B7: FA | C7: CONVENTIONAL | D7: 017-081-14 | E7: 614326 | F7: 218448 | G7: 2020-04-29 | H7: GUILD MORTGAGE COMPANY
A8: First American Title | B8: FA | C8: FHA | D8: 029-302-08 | E8: 613717 | F8: 289876 | G8: 2020-04-15 | H8: GUILD MORTGAGE COMPANY
A9: First American Title | B9: FA | C9: CONVENTIONAL | D9: 019-326-20 | E9: 614244 | F9: 198000 | G9: 2020-04-28 | H9: UNITED WHOLESALE MORTGAGE
A10: First American Title | B10: FA | C10: CONVENTIONAL | D10: 022-322-02 | E10: 614202 | F10: 394000 | G10: 2020-04-27 | H10: FLAGSTAR BANK
A11: First American Title | B11: FA | C11: FHA | D11: 022-424-21 | E11: 613905 | F11: 213342 | G11: 2020-04-20 | H11: LONE MORTGAGE INC
A12: First American Title | B12: FA | C12: CONVENTIONAL | D12: 019-855-13 | E12: 613539 | F12: 169000 | G12: 2020-04-13 | H12: PRIMELENDING
A13: First Centennial Title | B13: FC | C13: CONVENTIONAL | D13: 019-653-11 | E13: 614347 | F13: 432000 | G13: 2020-04-29 | H13: GREATER NEVADA MORTGAGE
A14: First Centennial Title | B14: FC | C14: CONVENTIONAL | D14: 019-552-56 | E14: 613375 | F14: 154385 | G14: 2020-04-08 | H14: GREATER NEVADA MORTGAGE
A15: First Centennial Title | B15: FC | C15: CONVENTIONAL | D15: 021-302-80 | E15: 613652 | F15: 253500 | G15: 2020-04-13 | H15: RESIDENTIAL BANCORP
A16: First Centennial Title | B16: FC | C16: CONVENTIONAL | D16: 029-101-18 | E16: 613202 | F16: 106650 | G16: 2020-04-03 | H16: GREATER NEVADA MORTGAGE
A17: First Centennial Title | B17: FC | C17: CONVENTIONAL | D17: 029-431-17 | E17: 613079 | F17: 230000 | G17: 2020-04-01 | H17: UNITED FEDERAL CREDIT UNION
A18: First Centennial Title | B18: FC | C18: CONVENTIONAL | D18: 029-082-18 | E18: 613264 | F18: 303000 | G18: 2020-04-06 | H18: SIERRA PACIFIC MORTGAGE CO INC
A19: First Centennial Title | B19: FC | C19: CONVENTIONAL | D19: 022-185-01 | E19: 613544 | F19: 260500 | G19: 2020-04-13 | H19: AMERICAN PACIFIC MORTGAGE CORP
A20: First Centennial Title | B20: FC | C20: VA | D20: 018-221-02 | E20: 614048 | F20: 217364 | G20: 2020-04-22 | H20: AMERICAN PACIFIC MORTGAGE CORPORATION
A21: First Centennial Title | B21: FC | C21: CONVENTIONAL | D21: 029-513-03 | E21: 613173 | F21: 260000 | G21: 2020-04-03 | H21: UNITED FEDERAL CREDIT UNION
A22: First Centennial Title | B22: FC | C22: CONVENTIONAL | D22: 020-761-20 | E22: 614060 | F22: 152500 | G22: 2020-04-22 | H22: PRIMELENDING
A23: First Centennial Title | B23: FC | C23: CONVENTIONAL | D23: 019-552-04 | E23: 614396 | F23: 184000 | G23: 2020-04-30 | H23: GREATER NEVADA MORTGAGE
A24: First Centennial Title | B24: FC | C24: CREDIT LINE | D24: 017-423-11 | E24: 613940 | F24: 25000 | G24: 2020-04-20 | H24: PLUMAS BANK
A25: First Centennial Title | B25: FC | C25: CONVENTIONAL | D25: 022-525-02 | E25: 614342 | F25: 262200 | G25: 2020-04-29 | H25: SUMMIT FUNDING INC
A26: First Centennial Title | B26: FC | C26: CONVENTIONAL | D26: 029-321-08 | E26: 614336 | F26: 262000 | G26: 2020-04-29 | H26: GREATER NEVADA MORTGAGE
A27: First Centennial Title | B27: FC | C27: CONVENTIONAL | D27: 029-413-02 | E27: 613812 | F27: 199000 | G27: 2020-04-17 | H27: CMG FINANCIAL
A28: First Centennial Title | B28: FC | C28: CONVENTIONAL | D28: 022-434-04 | E28: 613578 | F28: 249900 | G28: 2020-04-13 | H28: ISERVE RESIDENTIAL LENDING LLC
A29: First Centennial Title | B29: FC | C29: CONVENTIONAL | D29: 019-868-05 | E29: 613981 | F29: 200000 | G29: 2020-04-21 | H29: MOVEMENT MORTGAGE LLC
A30: First Centennial Title | B30: FC | C30: CONVENTIONAL | D30: 029-653-02 | E30: 614391 | F30: 268900 | G30: 2020-04-30 | H30: GENEVA FINANCIAL LLC
A31: North American Title | B31: NA | C31: CONVENTIONAL | D31: 020-933-25 | E31: 613234 | F31: 102500 | G31: 2020-04-06 | H31: MOVEMENT MORTGAGE LLC
A32: North American Title | B32: NA | C32: CONVENTIONAL | D32: 029-485-05 | E32: 613983 | F32: 268800 | G32: 2020-04-21 | H32: MOVEMENT MORTGAGE LLC
A33: North American Title | B33: NA | C33: VA | D33: 020-832-08 | E33: 613648 | F33: 489937 | G33: 2020-04-13 | H33: MOVEMENT MORTGAGE LLC
A34: North American Title | B34: NA | C34: CONVENTIONAL | D34: 029-432-03 | E34: 614116 | F34: 290000 | G34: 2020-04-24 | H34: ISERVE RESIDENTIAL LENDING LLC
A35: North American Title | B35: NA | C35: CONVENTIONAL | D35: 022-283-01 | E35: 614429 | F35: 218410 | G35: 2020-04-30 | H35: ALL WESTERN MORTGAGE INC
A36: Stewart Title | B36: ST | C36: CONVENTIONAL | D36: 015-441-29 | E36: 613092 | F36: 110000 | G36: 2020-04-01 | H36: GUILD MORTGAGE COMPANY
A37: Stewart Title | B37: ST | C37: CONVENTIONAL | D37: 002-544-02 | E37: 614120 | F37: 110000 | G37: 2020-04-24 | H37: AXIA FINANCIAL LLC
A38: Ticor Title | B38: TI | C38: CONVENTIONAL | D38: 029-122-08 | E38: 614112 | F38: 222150 | G38: 2020-04-24 | H38: UNITED WHOLESALE MORTGAGE
A39: Ticor Title | B39: TI | C39: CONVENTIONAL | D39: 029-191-03 | E39: 613679 | F39: 230000 | G39: 2020-04-14 | H39: GREATER NEVADA MORTGAGE
A40: Ticor Title | B40: TI | C40: VA | D40: 019-952-17 | E40: 613964 | F40: 342802 | G40: 2020-04-21 | H40: GUILD MORTGAGE COMPANY
A41: Ticor Title | B41: TI | C41: FHA | D41: 020-502-02 | E41: 614212 | F41: 226393 | G41: 2020-04-27 | H41: GUILD MORTGAGE COMPANY
A42: Ticor Title | B42: TI | C42: CONVENTIONAL | D42: 019-325-31 | E42: 613818 | F42: 242424 | G42: 2020-04-17 | H42: MOVEMENT MORTGAGE LLC
A43: Ticor Title | B43: TI | C43: CONVENTIONAL | D43: 019-871-30 | E43: 613939 | F43: 379411 | G43: 2020-04-20 | H43: QUICKEN LOANS INC
A44: Ticor Title | B44: TI | C44: CONVENTIONAL | D44: 019-651-02 | E44: 613896 | F44: 144200 | G44: 2020-04-20 | H44: PRIMELENDING
A45: Ticor Title | B45: TI | C45: CONVENTIONAL | D45: 020-845-10 | E45: 613709 | F45: 254000 | G45: 2020-04-15 | H45: SIERRA PACIFIC MORTGAGE COMPANY INC
A46: Ticor Title | B46: TI | C46: CONVENTIONAL | D46: 019-459-19 | E46: 613967 | F46: 340800 | G46: 2020-04-21 | H46: GUILD MORTGAGE COMPANY
A47: Ticor Title | B47: TI | C47: CONVENTIONAL | D47: 020-572-07 | E47: 613685 | F47: 297000 | G47: 2020-04-14 | H47: GUILD MORTGAGE COMPANY
A48: Ticor Title | B48: TI | C48: CONVENTIONAL | D48: 029-131-08 | E48: 613529 | F48: 290500 | G48: 2020-04-13 | H48: PRIMELENDING
A49: Ticor Title | B49: TI | C49: CONVENTIONAL | D49: 020-642-29 | E49: 613506 | F49: 120000 | G49: 2020-04-10 | H49: GREATER NEVADA MORTGAGE
A50: Ticor Title | B50: TI | C50: CONVENTIONAL | D50: 001-121-05 | E50: 613483 | F50: 124000 | G50: 2020-04-10 | H50: GREATER NEVADA MORTGAGE
A51: Ticor Title | B51: TI | C51: CONVENTIONAL | D51: 020-194-09 | E51: 613716 | F51: 216000 | G51: 2020-04-15 | H51: NEVADA STATE BANK
A52: Ticor Title | B52: TI | C52: VA | D52: 029-573-13 | E52: 614199 | F52: 312318 | G52: 2020-04-27 | H52: MOVEMENT MORTGAGE LLC
A53: Ticor Title | B53: TI | C53: VA | D53: 019-301-04 | E53: 614142 | F53: 206201 | G53: 2020-04-24 | H53: GUILD MORTGAGE COMPANY
A54: Ticor Title | B54: TI | C54: CONVENTIONAL | D54: 019-364-10 | E54: 614125 | F54: 200000 | G54: 2020-04-24 | H54: MOVEMENT MORTGAGE LLC
A55: Ticor Title | B55: TI | C55: CONVENTIONAL | D55: 029-271-09 | E55: 614113 | F55: 234000 | G55: 2020-04-24 | H55: MOVEMENT MORTGAGE LLC
A56: Ticor Title | B56: TI | C56: CONVENTIONAL | D56: 019-221-17 | E56: 613833 | F56: 154700 | G56: 2020-04-17 | H56: GREATER NEVADA MORTGAGE
A57: Ticor Title | B57: TI | C57: VA | D57: 019-755-05 | E57: 613686 | F57: 291063 | G57: 2020-04-14 | H57: AMERICAN PACIFIC MORTGAGE CORPORATION
A58: Ticor Title | B58: TI | C58: CONVENTIONAL | D58: 019-982-08 | E58: 613910 | F58: 145000 | G58: 2020-04-20 | H58: GREATER NEVADA MORTGAGE
A59: Ticor Title | B59: TI | C59: CONVENTIONAL | D59: 019-632-28 | E59: 613392 | F59: 215000 | G59: 2020-04-08 | H59: GREATER NEVADA MORTGAGE
A60: Ticor Title | B60: TI | C60: VA | D60: 020-082-15 | E60: 613828 | F60: 166278 | G60: 2020-04-17 | H60: SUMMIT FUNDING INC
A61: Ticor Title | B61: TI | C61: CONVENTIONAL | D61: 029-392-09 | E61: 614310 | F61: 200000 | G61: 2020-04-29 | H61: PRIMELENDING
A62: Ticor Title | B62: TI | C62: CONVENTIONAL | D62: 022-185-12 | E62: 613201 | F62: 193000 | G62: 2020-04-03 | H62: GUILD MORTGAGE COMPANY
A63: Ticor Title | B63: TI | C63: CONVENTIONAL | D63: 021-481-09 | E63: 613437 | F63: 163500 | G63: 2020-04-09 | H63: GUILD MORTGAGE COMPANY
A64: Ticor Title | B64: TI | C64: CONVENTIONAL | D64: 020-863-16 | E64: 614345 | F64: 226000 | G64: 2020-04-29 | H64: ALL WESTERN MORTGAGE INC
A65: Ticor Title | B65: TI | C65: CONVENTIONAL | D65: 019-679-05 | E65: 614349 | F65: 187300 | G65: 2020-04-29 | H65: GREATER NEVADA MORTGAGE
A66: Ticor Title | B66: TI | C66: VA | D66: 019-612-02 | E66: 613175 | F66: 452221 | G66: 2020-04-03 | H66: PRIMARY RESIDENTIAL MORTGAGE INC
A67: Ticor Title | B67: TI | C67: VA | D67: 022-404-20 | E67: 614352 | F67: 210000 | G67: 2020-04-29 | H67: GUILD MORTGAGE COMPANY
A68: Ticor Title | B68: TI | C68: CONVENTIONAL | D68: 004-382-11 | E68: 614365 | F68: 130200 | G68: 2020-04-30 | H68: GUILD MORTGAGE COMPANY
A69: Ticor Title | B69: TI | C69: CONVENTIONAL | D69: 029-352-02 | E69: 613388 | F69: 230884 | G69: 2020-04-08 | H69: GUILD MORTGAGE COMPANY
A70: Ticor Title | B70: TI | C70: CONVENTIONAL | D70: 022-061-04 | E70: 614007 | F70: 176000 | G70: 2020-04-22 | H70: GUILD MORTGAGE COMPANY
A71: Ticor Title | B71: TI | C71: VA | D71: 019-868-13 | E71: 614010 | F71: 294474 | G71: 2020-04-22 | H71: FINANCE OF AMERICA MORTGAGE LLC
A72: Ticor Title | B72: TI | C72: COMMERCIAL | D72: 021-232-36 | E72: 614021 | F72: 19200000 | G72: 2020-04-22 | H72: WELLS FARGO BANK NA
A73: Ticor Title | B73: TI | C73: CONVENTIONAL | D73: 020-991-34 | E73: 614240 | F73: 147000 | G73: 2020-04-28 | H73: PRIMELENDING
A74: Ticor Title | B74: TI | C74: CONVENTIONAL | D74: 022-185-06 | E74: 614314 | F74: 125000 | G74: 2020-04-29 | H74: GREATER NEVADA MORTGAGE
A75: Ticor Title | B75: TI | C75: CONVENTIONAL | D75: 020-763-05 | E75: 614298 | F75: 198000 | G75: 2020-04-29 | H75: FINANCE OF AMERICA MORTGAGE LLC
A76: Ticor Title | B76: TI | C76: VA | D76: 020-513-07 | E76: 614308 | F76: 237053 | G76: 2020-04-29 | H76: PRIMELENDING
A77: Ticor Title | B77: TI | C77: HARD MONEY | D77: 020-534-09 | E77: 614089 | F77: 285000 | G77: 2020-04-23 | H77: OLIN BILL D TRUSTEE; OLIN LORI TRUSTEE; OLIN BILL & LORI TRUST
A78: Ticor Title | B78: TI | C78: FHA | D78: 020-684-06 | E78: 614422 | F78: 243995 | G78: 2020-04-30 | H78: GUILD MORTGAGE COMPANY
A79: Ticor Title | B79: TI | C79: CONVENTIONAL | D79: 022-322-09 | E79: 614301 | F79: 465500 | G79: 2020-04-29 | H79: SUMMIT FUNDING INC
A80: Ticor Title | B80: TI | C80: CONVENTIONAL | D80: 022-054-13 | E80: 613242 | F80: 209500 | G80: 2020-04-06 | H80: SUMMIT FUNDING INC
A81: Ticor Title | B81: TI | C81: CONVENTIONAL | D81: 022-121-20 | E81: 613231 | F81: 208500 | G81: 2020-04-06 | H81: SUMMIT FUNDING INC
A82: Ticor Title | B82: TI | C82: CONVENTIONAL | D82: 019-854-21 | E82: 614248 | F82: 178000 | G82: 2020-04-28 | H82: GREATER NEVADA MORTGAGE
A83: Ticor Title | B83: TI | C83: VA | D83: 029-533-19 | E83: 614251 | F83: 321008 | G83: 2020-04-28 | H83: GUILD MORTGAGE COMPANY
A84: Ticor Title | B84: TI | C84: CONVENTIONAL | D84: 022-423-20 | E84: 614209 | F84: 260800 | G84: 2020-04-27 | H84: GUILD MORTGAGE COMPANY
A85: Ticor Title | B85: TI | C85: CONVENTIONAL | D85: 029-413-04 | E85: 614266 | F85: 243800 | G85: 2020-04-28 | H85: MOVEMENT MORTGAGE LLC
A86: Ticor Title | B86: TI | C86: CONVENTIONAL | D86: 019-372-22 | E86: 614281 | F86: 118220 | G86: 2020-04-28 | H86: GREATER NEVADA MORTGAGE
A87: Ticor Title | B87: TI | C87: CONVENTIONAL | D87: 020-632-10 | E87: 614025 | F87: 224000 | G87: 2020-04-22 | H87: SUMMIT FUNDING INC
A88: Toiyabe Title | B88: TT | C88: FHA | D88: 019-982-04 | E88: 613538 | F88: 275082 | G88: 2020-04-13 | H88: GUILD MORTGAGE COMPANY
A89: Western Title | B89: WE | C89: CONVENTIONAL | D89: 017-312-15 | E89: 614134 | F89: 232300 | G89: 2020-04-24 | H89: GUILD MORTGAGE COMPANY
A90: Western Title | B90: WE | C90: CONVENTIONAL | D90: 022-141-13 | E90: 613086 | F90: 160000 | G90: 2020-04-01 | H90: WELLS FARGO BANK NA
A91: Western Title | B91: WE | C91: CONVENTIONAL | D91: 022-321-04 | E91: 614311 | F91: 342500 | G91: 2020-04-29 | H91: SUMMIT FUNDING INC
A92: Western Title | B92: WE | C92: CONVENTIONAL | D92: 029-584-05 | E92: 614208 | F92: 113500 | G92: 2020-04-27 | H92: NEW AMERICAN FUNDING
A93: Western Title | B93: WE | C93: CONVENTIONAL | D93: 009-021-15 | E93: 614307 | F93: 329000 | G93: 2020-04-29 | H93: PRIMELENDING
A94: Western Title | B94: WE | C94: CONVENTIONAL | D94: 019-295-11 | E94: 613814 | F94: 243000 | G94: 2020-04-17 | H94: PRIMELENDING
A95: Western Title | B95: WE | C95: CONVENTIONAL | D95: 008-081-18 | E95: 613238 | F95: 444500 | G95: 2020-04-06 | H95: NEW AMERICAN FUNDING
A96: Western Title | B96: WE | C96: VA | D96: 029-401-25 | E96: 613668 | F96: 419178 | G96: 2020-04-14 | H96: NEWREZ LLC
A97: Western Title | B97: WE | C97: CONSTRUCTION | D97: 022-431-06 | E97: 613840 | F97: 2290280.25 | G97: 2020-04-17 | H97: ALL PRO FUNDING IV LLC
A98: Western Title | B98: WE | C98: CONVENTIONAL | D98: 019-310-20 | E98: 613954 | F98: 269000 | G98: 2020-04-21 | H98: PRIMELENDING
A99: Western Title | B99: WE | C99: CONVENTIONAL | D99: 020-572-02 | E99: 613904 | F99: 228000 | G99: 2020-04-20 | H99: GUILD MORTGAGE COMPANY
A100: Western Title | B100: WE | C100: CONVENTIONAL | D100: 022-161-06 | E100: 613907 | F100: 217500 | G100: 2020-04-20 | H100: FINANCE OF AMERICA MORTGAGE LLC
A101: Western Title | B101: WE | C101: CONVENTIONAL | D101: 017-031-10 | E101: 614398 | F101: 118000 | G101: 2020-04-30 | H101: FINANCIAL HORIZONS CREDIT UNION
A102: Western Title | B102: WE | C102: HARD MONEY | D102: 001-641-02 | E102: 613211 | F102: 128965 | G102: 2020-04-03 | H102: BENITZ BRIAN R TRUSTEE; BENITZ JACQUELINE M TRUSTEE; BENITZ TRUST
A103: Western Title | B103: WE | C103: CONVENTIONAL | D103: 020-902-03 | E103: 614203 | F103: 140000 | G103: 2020-04-27 | H103: FINANCE OF AMERICA MORTGAGE LLC
A104: Western Title | B104: WE | C104: CONVENTIONAL | D104: 029-404-04 | E104: 613482 | F104: 248300 | G104: 2020-04-10 | H104: GREATER NEVADA MORTGAGE
A105: Western Title | B105: WE | C105: CONVENTIONAL | D105: 020-592-11 | E105: 613830 | F105: 175000 | G105: 2020-04-17 | H105: COMMERCE HOME MORTGAGE LLC
A106: Western Title | B106: WE | C106: CONVENTIONAL | D106: 022-122-06 | E106: 613314 | F106: 220000 | G106: 2020-04-07 | H106: GREATER NEVADA MORTGAGE
A107: Western Title | B107: WE | C107: CONVENTIONAL | D107: 020-961-06 | E107: 613232 | F107: 320000 | G107: 2020-04-06 | H107: LOANDEPOT.COM LLC
A108: Western Title | B108: WE | C108: CONVENTIONAL | D108: 001-131-24 | E108: 613236 | F108: 234400 | G108: 2020-04-06 | H108: SUMMIT FUNDING INC
A109: Western Title | B109: WE | C109: CONVENTIONAL | D109: 016-371-10 | E109: 613541 | F109: 373800 | G109: 2020-04-13 | H109: NEW AMERICAN FUNDING
A110: Western Title | B110: WE | C110: CONVENTIONAL | D110: 020-973-01 | E110: 613493 | F110: 322000 | G110: 2020-04-10 | H110: HOMEOWNERS FINANCIAL GROUP USA LLC
A111: Western Title | B111: WE | C111: CONVENTIONAL | D111: 019-850-28 | E111: 613515 | F111: 239935 | G111: 2020-04-10 | H111: NEW AMERICAN FUNDING
A112: Western Title | B112: WE | C112: CONVENTIONAL | D112: 020-441-28 | E112: 613556 | F112: 175000 | G112: 2020-04-13 | H112: WELLS FARGO BANK NA
A113: Western Title | B113: WE | C113: CONVENTIONAL | D113: 020-761-17 | E113: 613386 | F113: 206200 | G113: 2020-04-08 | H113: NEW AMERICAN FUNDING
A114: Western Title | B114: WE | C114: CONVENTIONAL | D114: 014-291-02 | E114: 613535 | F114: 302000 | G114: 2020-04-13 | H114: UMPQUA BANK
A115: Western Title | B115: WE | C115: CONVENTIONAL | D115: 019-852-04 | E115: 613542 | F115: 232320 | G115: 2020-04-13 | H115: NEW AMERICAN FUNDING
A116: Western Title | B116: WE | C116: CONVENTIONAL | D116: 029-361-20 | E116: 613899 | F116: 450000 | G116: 2020-04-20 | H116: NEVADA STATE BANK
A117: Western Title | B117: WE | C117: CONVENTIONAL | D117: 019-503-03 | E117: 613490 | F117: 178911 | G117: 2020-04-10 | H117: NEW AMERICAN FUNDING

Sheet SALESLOANSLIST (hidden)
A1: FULLNAME | B1: RECBY | C1: AMOUNT | D1: RECDATE | E1: DOCTYPE | L1: 256
A2: Acme Title and Escrow | B2: ACT | C2: 20000 | D2: 2020-04-16 | E2: Deed
A3: First American Title | B3: FA | C3: 218448 | D3: 2020-04-29 | E3: Deed of Trust
A4: First American Title | B4: FA | C4: 218152 | D4: 2020-04-01 | E4: Deed of Trust
A5: First American Title | B5: FA | C5: 154330 | D5: 2020-04-13 | E5: Deed of Trust
A6: First American Title | B6: FA | C6: 1450000 | D6: 2020-04-17 | E6: Deed of Trust
A7: First American Title | B7: FA | C7: 299492 | D7: 2020-04-03 | E7: Deed Subdivider
A8: First American Title | B8: FA | C8: 213342 | D8: 2020-04-20 | E8: Deed of Trust
A9: First American Title | B9: FA | C9: 265150 | D9: 2020-04-07 | E9: Deed of Trust
A10: First American Title | B10: FA | C10: 287000 | D10: 2020-04-07 | E10: Deed
A11: First American Title | B11: FA | C11: 292949 | D11: 2020-04-06 | E11: Deed Subdivider
A12: First American Title | B12: FA | C12: 324386 | D12: 2020-04-30 | E12: Deed Subdivider
A13: First American Title | B13: FA | C13: 289876 | D13: 2020-04-15 | E13: Deed of Trust
A14: First American Title | B14: FA | C14: 399000 | D14: 2020-04-30 | E14: Deed
A15: First American Title | B15: FA | C15: 394000 | D15: 2020-04-27 | E15: Deed of Trust
A16: First American Title | B16: FA | C16: 458774 | D16: 2020-04-09 | E16: Deed Subdivider
A17: First American Title | B17: FA | C17: 294867 | D17: 2020-04-22 | E17: Deed of Trust
A18: First American Title | B18: FA | C18: 198000 | D18: 2020-04-28 | E18: Deed of Trust
A19: First American Title | B19: FA | C19: 169000 | D19: 2020-04-13 | E19: Deed of Trust
A20: First American Title | B20: FA | C20: 570000 | D20: 2020-04-15 | E20: Deed
A21: First Centennial Title | B21: FC | C21: 265000 | D21: 2020-04-27 | E21: Deed
A22: First Centennial Title | B22: FC | C22: 16500 | D22: 2020-04-17 | E22: Deed
A23: First Centennial Title | B23: FC | C23: 280000 | D23: 2020-04-14 | E23: Deed
A24: First Centennial Title | B24: FC | C24: 432000 | D24: 2020-04-29 | E24: Deed of Trust
A25: First Centennial Title | B25: FC | C25: 169900 | D25: 2020-04-02 | E25: Deed
A26: First Centennial Title | B26: FC | C26: 262000 | D26: 2020-04-29 | E26: Deed of Trust
A27: First Centennial Title | B27: FC | C27: 154385 | D27: 2020-04-08 | E27: Deed of Trust
A28: First Centennial Title | B28: FC | C28: 200000 | D28: 2020-04-27 | E28: Deed
A29: First Centennial Title | B29: FC | C29: 232000 | D29: 2020-04-10 | E29: Deed
A30: First Centennial Title | B30: FC | C30: 152500 | D30: 2020-04-22 | E30: Deed of Trust
A31: First Centennial Title | B31: FC | C31: 43000 | D31: 2020-04-03 | E31: Deed
A32: First Centennial Title | B32: FC | C32: 270000 | D32: 2020-04-07 | E32: Deed
A33: First Centennial Title | B33: FC | C33: 445000 | D33: 2020-04-10 | E33: Deed
A34: First Centennial Title | B34: FC | C34: 303000 | D34: 2020-04-06 | E34: Deed of Trust
A35: First Centennial Title | B35: FC | C35: 250000 | D35: 2020-04-10 | E35: Deed
A36: First Centennial Title | B36: FC | C36: 470000 | D36: 2020-04-06 | E36: Deed
A37: First Centennial Title | B37: FC | C37: 86000 | D37: 2020-04-24 | E37: Deed
A38: First Centennial Title | B38: FC | C38: 260000 | D38: 2020-04-03 | E38: Deed of Trust
A39: First Centennial Title | B39: FC | C39: 80000 | D39: 2020-04-24 | E39: Deed
A40: First Centennial Title | B40: FC | C40: 106650 | D40: 2020-04-03 | E40: Deed of Trust
A41: First Centennial Title | B41: FC | C41: 249900 | D41: 2020-04-13 | E41: Deed of Trust
A42: First Centennial Title | B42: FC | C42: 10000 | D42: 2020-04-13 | E42: Deed
A43: First Centennial Title | B43: FC | C43: 230000 | D43: 2020-04-01 | E43: Deed of Trust
A44: First Centennial Title | B44: FC | C44: 253500 | D44: 2020-04-13 | E44: Deed of Trust
A45: First Centennial Title | B45: FC | C45: 260500 | D45: 2020-04-13 | E45: Deed of Trust
A46: First Centennial Title | B46: FC | C46: 217364 | D46: 2020-04-22 | E46: Deed of Trust
A47: First Centennial Title | B47: FC | C47: 253000 | D47: 2020-04-22 | E47: Deed
A48: First Centennial Title | B48: FC | C48: 200000 | D48: 2020-04-21 | E48: Deed of Trust
A49: First Centennial Title | B49: FC | C49: 184000 | D49: 2020-04-30 | E49: Deed of Trust
A50: First Centennial Title | B50: FC | C50: 268900 | D50: 2020-04-30 | E50: Deed of Trust
A51: First Centennial Title | B51: FC | C51: 25000 | D51: 2020-04-20 | E51: Deed of Trust
A52: First Centennial Title | B52: FC | C52: 297000 | D52: 2020-04-21 | E52: Deed
A53: First Centennial Title | B53: FC | C53: 367000 | D53: 2020-04-22 | E53: Deed
A54: First Centennial Title | B54: FC | C54: 199000 | D54: 2020-04-17 | E54: Deed of Trust
A55: First Centennial Title | B55: FC | C55: 279000 | D55: 2020-04-17 | E55: Deed
A56: First Centennial Title | B56: FC | C56: 380000 | D56: 2020-04-20 | E56: Deed
A57: First Centennial Title | B57: FC | C57: 262200 | D57: 2020-04-29 | E57: Deed of Trust
A58: First Centennial Title | B58: FC | C58: 269000 | D58: 2020-04-15 | E58: Deed
A59: North American Title | B59: NA | C59: 489937 | D59: 2020-04-13 | E59: Deed of Trust
A60: North American Title | B60: NA | C60: 133000 | D60: 2020-04-22 | E60: Deed
A61: North American Title | B61: NA | C61: 102500 | D61: 2020-04-06 | E61: Deed of Trust
A62: North American Title | B62: NA | C62: 290000 | D62: 2020-04-24 | E62: Deed of Trust
A63: North American Title | B63: NA | C63: 268800 | D63: 2020-04-21 | E63: Deed of Trust
A64: North American Title | B64: NA | C64: 218410 | D64: 2020-04-30 | E64: Deed of Trust
A65: Signature Title | B65: SIG | C65: 358000 | D65: 2020-04-13 | E65: Deed
A66: Signature Title | B66: SIG | C66: 300000 | D66: 2020-04-17 | E66: Deed
A67: Signature Title | B67: SIG | C67: 217500 | D67: 2020-04-17 | E67: Deed
A68: Stewart Title | B68: ST | C68: 110000 | D68: 2020-04-01 | E68: Deed of Trust
A69: Stewart Title | B69: ST | C69: 110000 | D69: 2020-04-24 | E69: Deed of Trust
A70: Ticor Title | B70: TI | C70: 285000 | D70: 2020-04-17 | E70: Deed
A71: Ticor Title | B71: TI | C71: 203000 | D71: 2020-04-24 | E71: Deed
A72: Ticor Title | B72: TI | C72: 291063 | D72: 2020-04-14 | E72: Deed of Trust
A73: Ticor Title | B73: TI | C73: 222150 | D73: 2020-04-24 | E73: Deed of Trust
A74: Ticor Title | B74: TI | C74: 259000 | D74: 2020-04-20 | E74: Deed
A75: Ticor Title | B75: TI | C75: 145000 | D75: 2020-04-20 | E75: Deed of Trust
A76: Ticor Title | B76: TI | C76: 124000 | D76: 2020-04-10 | E76: Deed of Trust
A77: Ticor Title | B77: TI | C77: 144200 | D77: 2020-04-20 | E77: Deed of Trust
A78: Ticor Title | B78: TI | C78: 200000 | D78: 2020-04-24 | E78: Deed of Trust
A79: Ticor Title | B79: TI | C79: 230884 | D79: 2020-04-08 | E79: Deed of Trust
A80: Ticor Title | B80: TI | C80: 147000 | D80: 2020-04-28 | E80: Deed of Trust
A81: Ticor Title | B81: TI | C81: 575000 | D81: 2020-04-07 | E81: Deed
A82: Ticor Title | B82: TI | C82: 237300 | D82: 2020-04-17 | E82: Deed Subdivider
A83: Ticor Title | B83: TI | C83: 220000 | D83: 2020-04-30 | E83: Deed
A84: Ticor Title | B84: TI | C84: 321008 | D84: 2020-04-28 | E84: Deed of Trust
A85: Ticor Title | B85: TI | C85: 150000 | D85: 2020-04-13 | E85: Deed
A86: Ticor Title | B86: TI | C86: 290500 | D86: 2020-04-13 | E86: Deed of Trust
A87: Ticor Title | B87: TI | C87: 277000 | D87: 2020-04-03 | E87: Deed
A88: Ticor Title | B88: TI | C88: 193000 | D88: 2020-04-03 | E88: Deed of Trust
A89: Ticor Title | B89: TI | C89: 178000 | D89: 2020-04-28 | E89: Deed of Trust
A90: Ticor Title | B90: TI | C90: 243995 | D90: 2020-04-30 | E90: Deed of Trust
A91: Ticor Title | B91: TI | C91: 166278 | D91: 2020-04-17 | E91: Deed of Trust
A92: Ticor Title | B92: TI | C92: 220500 | D92: 2020-04-30 | E92: Deed
A93: Ticor Title | B93: TI | C93: 243000 | D93: 2020-04-30 | E93: Deed
A94: Ticor Title | B94: TI | C94: 208500 | D94: 2020-04-06 | E94: Deed of Trust
A95: Ticor Title | B95: TI | C95: 262500 | D95: 2020-04-10 | E95: Deed
A96: Ticor Title | B96: TI | C96: 281700 | D96: 2020-04-01 | E96: Deed Subdivider
A97: Ticor Title | B97: TI | C97: 215000 | D97: 2020-04-08 | E97: Deed of Trust
A98: Ticor Title | B98: TI | C98: 43500 | D98: 2020-04-30 | E98: Deed
A99: Ticor Title | B99: TI | C99: 120000 | D99: 2020-04-10 | E99: Deed of Trust
A100: Ticor Title | B100: TI | C100: 315000 | D100: 2020-04-28 | E100: Deed
A101: Ticor Title | B101: TI | C101: 216000 | D101: 2020-04-15 | E101: Deed of Trust
A102: Ticor Title | B102: TI | C102: 206201 | D102: 2020-04-24 | E102: Deed of Trust
A103: Ticor Title | B103: TI | C103: 410000 | D103: 2020-04-15 | E103: Deed
A104: Ticor Title | B104: TI | C104: 130200 | D104: 2020-04-30 | E104: Deed of Trust
A105: Ticor Title | B105: TI | C105: 280000 | D105: 2020-04-02 | E105: Deed
A106: Ticor Title | B106: TI | C106: 77566 | D106: 2020-04-15 | E106: Deed
A107: Ticor Title | B107: TI | C107: 365900 | D107: 2020-04-07 | E107: Deed
A108: Ticor Title | B108: TI | C108: 250000 | D108: 2020-04-14 | E108: Deed
A109: Ticor Title | B109: TI | C109: 235000 | D109: 2020-04-07 | E109: Deed
A110: Ticor Title | B110: TI | C110: 187300 | D110: 2020-04-29 | E110: Deed of Trust
A111: Ticor Title | B111: TI | C111: 363000 | D111: 2020-04-09 | E111: Deed
A112: Ticor Title | B112: TI | C112: 226000 | D112: 2020-04-29 | E112: Deed of Trust
A113: Ticor Title | B113: TI | C113: 242424 | D113: 2020-04-17 | E113: Deed of Trust
A114: Ticor Title | B114: TI | C114: 163500 | D114: 2020-04-09 | E114: Deed of Trust
A115: Ticor Title | B115: TI | C115: 250000 | D115: 2020-04-10 | E115: Deed
A116: Ticor Title | B116: TI | C116: 424711 | D116: 2020-04-20 | E116: Deed
A117: Ticor Title | B117: TI | C117: 231000 | D117: 2020-04-08 | E117: Deed
A118: Ticor Title | B118: TI | C118: 240000 | D118: 2020-04-08 | E118: Deed
A119: Ticor Title | B119: TI | C119: 340800 | D119: 2020-04-21 | E119: Deed of Trust
A120: Ticor Title | B120: TI | C120: 560000 | D120: 2020-04-10 | E120: Deed
A121: Ticor Title | B121: TI | C121: 175000 | D121: 2020-04-20 | E121: Deed
A122: Ticor Title | B122: TI | C122: 226393 | D122: 2020-04-27 | E122: Deed of Trust
A123: Ticor Title | B123: TI | C123: 154700 | D123: 2020-04-17 | E123: Deed of Trust
A124: Ticor Title | B124: TI | C124: 385000 | D124: 2020-04-24 | E124: Deed
A125: Ticor Title | B125: TI | C125: 258000 | D125: 2020-04-24 | E125: Deed
A126: Ticor Title | B126: TI | C126: 254000 | D126: 2020-04-15 | E126: Deed of Trust
A127: Ticor Title | B127: TI | C127: 312318 | D127: 2020-04-27 | E127: Deed of Trust
A128: Ticor Title | B128: TI | C128: 234000 | D128: 2020-04-24 | E128: Deed of Trust
A129: Ticor Title | B129: TI | C129: 342802 | D129: 2020-04-21 | E129: Deed of Trust
A130: Ticor Title | B130: TI | C130: 379411 | D130: 2020-04-20 | E130: Deed of Trust
A131: Ticor Title | B131: TI | C131: 125000 | D131: 2020-04-29 | E131: Deed of Trust
A132: Ticor Title | B132: TI | C132: 240000 | D132: 2020-04-29 | E132: Deed
A133: Ticor Title | B133: TI | C133: 338000 | D133: 2020-04-10 | E133: Deed
A134: Ticor Title | B134: TI | C134: 42000 | D134: 2020-04-30 | E134: Deed
A135: Ticor Title | B135: TI | C135: 297000 | D135: 2020-04-14 | E135: Deed of Trust
A136: Ticor Title | B136: TI | C136: 255000 | D136: 2020-04-30 | E136: Deed
A137: Ticor Title | B137: TI | C137: 209500 | D137: 2020-04-06 | E137: Deed of Trust
A138: Ticor Title | B138: TI | C138: 595000 | D138: 2020-04-01 | E138: Deed
A139: Ticor Title | B139: TI | C139: 480000 | D139: 2020-04-03 | E139: Deed
A140: Ticor Title | B140: TI | C140: 294474 | D140: 2020-04-22 | E140: Deed of Trust
A141: Ticor Title | B141: TI | C141: 19200000 | D141: 2020-04-22 | E141: Deed of Trust
A142: Ticor Title | B142: TI | C142: 125000 | D142: 2020-04-30 | E142: Deed
A143: Ticor Title | B143: TI | C143: 17000 | D143: 2020-04-22 | E143: Deed
A144: Ticor Title | B144: TI | C144: 200000 | D144: 2020-04-29 | E144: Deed of Trust
A145: Ticor Title | B145: TI | C145: 130000 | D145: 2020-04-23 | E145: Deed
A146: Ticor Title | B146: TI | C146: 176000 | D146: 2020-04-22 | E146: Deed of Trust
A147: Ticor Title | B147: TI | C147: 230000 | D147: 2020-04-14 | E147: Deed of Trust
A148: Ticor Title | B148: TI | C148: 342850 | D148: 2020-04-30 | E148: Deed
A149: Ticor Title | B149: TI | C149: 452221 | D149: 2020-04-03 | E149: Deed of Trust
A150: Ticor Title | B150: TI | C150: 224000 | D150: 2020-04-22 | E150: Deed of Trust
A151: Ticor Title | B151: TI | C151: 210000 | D151: 2020-04-29 | E151: Deed of Trust
A152: Ticor Title | B152: TI | C152: 465500 | D152: 2020-04-29 | E152: Deed of Trust
A153: Ticor Title | B153: TI | C153: 237053 | D153: 2020-04-29 | E153: Deed of Trust
A154: Ticor Title | B154: TI | C154: 198000 | D154: 2020-04-29 | E154: Deed of Trust
A155: Ticor Title | B155: TI | C155: 118220 | D155: 2020-04-28 | E155: Deed of Trust
A156: Ticor Title | B156: TI | C156: 243800 | D156: 2020-04-28 | E156: Deed of Trust
A157: Ticor Title | B157: TI | C157: 260800 | D157: 2020-04-27 | E157: Deed of Trust
A158: Ticor Title | B158: TI | C158: 285000 | D158: 2020-04-23 | E158: Deed of Trust
A159: Toiyabe Title | B159: TT | C159: 275082 | D159: 2020-04-13 | E159: Deed of Trust
A160: Toiyabe Title | B160: TT | C160: 334900 | D160: 2020-04-16 | E160: Deed
A161: Western Title | B161: WE | C161: 674458 | D161: 2020-04-17 | E161: Deed
A162: Western Title | B162: WE | C162: 450000 | D162: 2020-04-20 | E162: Deed of Trust
A163: Western Title | B163: WE | C163: 459500 | D163: 2020-04-07 | E163: Deed
A164: Western Title | B164: WE | C164: 228000 | D164: 2020-04-20 | E164: Deed of Trust
A165: Western Title | B165: WE | C165: 217500 | D165: 2020-04-20 | E165: Deed of Trust
A166: Western Title | B166: WE | C166: 36000 | D166: 2020-04-30 | E166: Deed
A167: Western Title | B167: WE | C167: 58000 | D167: 2020-04-03 | E167: Deed
A168: Western Title | B168: WE | C168: 267000 | D168: 2020-04-17 | E168: Deed
A169: Western Title | B169: WE | C169: 249900 | D169: 2020-04-17 | E169: Deed
A170: Western Title | B170: WE | C170: 232300 | D170: 2020-04-24 | E170: Deed of Trust
A171: Western Title | B171: WE | C171: 320000 | D171: 2020-04-06 | E171: Deed of Trust
A172: Western Title | B172: WE | C172: 234400 | D172: 2020-04-06 | E172: Deed of Trust
A173: Western Title | B173: WE | C173: 444500 | D173: 2020-04-06 | E173: Deed of Trust
A174: Western Title | B174: WE | C174: 55000 | D174: 2020-04-06 | E174: Deed
A175: Western Title | B175: WE | C175: 220000 | D175: 2020-04-07 | E175: Deed
A176: Western Title | B176: WE | C176: 339000 | D176: 2020-04-07 | E176: Deed
A177: Western Title | B177: WE | C177: 7000 | D177: 2020-04-07 | E177: Deed
A178: Western Title | B178: WE | C178: 259900 | D178: 2020-04-07 | E178: Deed
A179: Western Title | B179: WE | C179: 206200 | D179: 2020-04-08 | E179: Deed of Trust
A180: Western Title | B180: WE | C180: 247000 | D180: 2020-04-24 | E180: Deed
A181: Western Title | B181: WE | C181: 269000 | D181: 2020-04-21 | E181: Deed of Trust
A182: Western Title | B182: WE | C182: 100000 | D182: 2020-04-23 | E182: Deed
A183: Western Title | B183: WE | C183: 329900 | D183: 2020-04-22 | E183: Deed
A184: Western Title | B184: WE | C184: 118000 | D184: 2020-04-30 | E184: Deed of Trust
A185: Western Title | B185: WE | C185: 255000 | D185: 2020-04-24 | E185: Deed
A186: Western Title | B186: WE | C186: 273000 | D186: 2020-04-24 | E186: Deed
A187: Western Title | B187: WE | C187: 135000 | D187: 2020-04-24 | E187: Deed
A188: Western Title | B188: WE | C188: 113500 | D188: 2020-04-27 | E188: Deed of Trust
A189: Western Title | B189: WE | C189: 510000 | D189: 2020-04-29 | E189: Deed
A190: Western Title | B190: WE | C190: 289000 | D190: 2020-04-29 | E190: Deed
A191: Western Title | B191: WE | C191: 199900 | D191: 2020-04-29 | E191: Deed
A192: Western Title | B192: WE | C192: 75000 | D192: 2020-04-02 | E192: Deed
A193: Western Title | B193: WE | C193: 395000 | D193: 2020-04-30 | E193: Deed
A194: Western Title | B194: WE | C194: 219900 | D194: 2020-04-24 | E194: Deed
A195: Western Title | B195: WE | C195: 264900 | D195: 2020-04-30 | E195: Deed
A196: Western Title | B196: WE | C196: 269000 | D196: 2020-04-17 | E196: Deed
A197: Western Title | B197: WE | C197: 499000 | D197: 2020-04-23 | E197: Deed
A198: Western Title | B198: WE | C198: 236000 | D198: 2020-04-23 | E198: Deed
A199: Western Title | B199: WE | C199: 15104000 | D199: 2020-04-23 | E199: Deed
A200: Western Title | B200: WE | C200: 380000 | D200: 2020-04-30 | E200: Deed
... 56 more rows
